{"text_format":"1","workbook":"xlsx","n_sheets":3,"sheets":["CasaPLUS","CasaMAR","Hoja1"],"not_rendered":{"charts":0,"images":2,"macros":1,"external_links":0,"defined_names":2,"comments":0,"pivot_tables":0},"unopened":[],"bounds":{"document_bytes":16777216,"sheet_cells":100000,"rows_first":2000,"rows_last":500,"rows_between":2000,"halvings":0,"cell_chars":16384,"cell_head_chars":4096},"cells_cut":0,"cells_raw":0,"read":"whole","date_system":"1900"}

{"sheet":"CasaPLUS","index":0,"n_rows":152,"n_cols":30,"rows_kept":152,"cut":false,"hidden":false,"merged":[[14,3,14,4],[73,2,73,16],[34,11,34,16],[42,11,42,16],[54,11,54,16],[50,2,50,4],[51,2,51,4],[42,2,42,4],[40,2,40,4],[41,2,41,4],[43,2,43,4],[45,2,45,4],[46,2,46,4],[47,2,47,4],[48,2,48,16],[49,5,49,7],[10,11,11,11],[10,12,11,12],[9,2,9,15],[10,8,11,8],[10,10,11,10],[10,2,11,4],[39,2,39,4],[49,2,49,4],[28,23,28,24],[28,21,28,22],[28,19,28,20],[28,5,29,5],[28,8,28,9],[33,11,33,16],[32,2,32,4],[33,2,33,4],[34,2,34,4],[37,2,37,4],[44,2,44,4],[52,2,52,4],[53,2,53,4],[59,2,59,4],[55,2,55,4],[56,2,56,4],[57,2,57,4],[58,2,58,4],[54,2,54,4],[76,2,76,16],[60,2,60,4],[61,2,61,4],[178,2,178,3],[63,2,63,4],[62,2,62,4],[100,2,100,16],[74,2,74,16],[69,13,69,16],[68,13,68,16],[67,13,67,16],[66,13,66,16],[70,3,70,16],[180,2,180,3],[176,2,176,3],[177,2,177,3],[147,2,151,2],[179,2,179,3],[6,4,6,8],[6,9,6,16],[7,15,7,16],[28,11,29,15],[1,2,1,16],[4,3,4,16],[3,3,3,16],[5,14,5,16],[5,3,5,8],[5,10,5,11],[28,2,29,4],[28,6,29,6],[28,7,29,7],[12,2,12,4],[10,13,10,15],[10,9,11,9]]}
[]
[null,null,"COTIZACIÓN SEGURO DOMICILIARIO CASAPLUSV8"]
[null,null,null,null,null,null,null,null,null,null,null,null,null,null,null,null,null,null,null,null,"Dólares (US$)","US$","BASICAS ",null,null,null,"Concreto Armado","Departamento","SI","No Aplica"]
[null,null,"CONTRATANTE",null,null,null,null,null,null,null,null,null,null,null,null,null,null,null,null,null,"Sol ( S/ )","S/","COMPLETAS ",null,null,null,"Ladrillo y Cemento","Casa","NO"]
[null,null,"ASEGURADO",null,null,null,null,null,null,null,null,null,null,null,null,null,null,null,null,null,null,null,null,null,null,null,"Estructura de Acero"]
[null,null,"CORREDOR",null,null,null,null,null,null,"Oficina ",null,null,"Ejecutivo Comercial ",null,null,null,null,null,null,null,"Tipo de Cambio",4.1500000000000004,null,null,null,null,"Madera y/o Adobe y/o quincha"]
[null,null,"ENDOSATARIO","SI","Nombre del Endosatario"]
[null,null,"MONEDA","Dólares (US$)","Fecha Cotización",null,null,null,{"$f":"TODAY()","v":"2021-09-30"},"Validez de la cotización ",null,"15 días ","Vigencia del seguro",null,null,"1 Año ",null,null,null,null,"monto minimo Cob robo",1999]
[]
[null,null,"DATOS SBS",null,null,null,null,null,null,null,null,null,null,null,null,null,null,null,null,null,"limite SA",1500000,null,null,null,"para ocultar celdas con macros","https://www.youtube.com/watch?v=kiSTbvB8EJc"]
[null,null,"Ubicación del riesgo",null,null,null,null,null,"Tipo de Vivienda ","Tipo Estructura","Nro. Pisos","Nro. Sótanos","Año Construc.","Valor Declarado"]
[null,null,null,null,null,null,null,null,null,null,null,null,null,"Edificio","Contenido","Total",null,null,null,null,"valor verdadero","Excede limite permitido"]
[null,null,null,null,null,null,null,null,null,null,null,null,null,100000,null,{"$f":"SUM(N13:O13)","v":100000},null,null,null,null,"valor verdadero","Debe asegurar edificio"]
[]
[null,null,"Seleccionar Coberturas","BASICAS "]
[null,null,null,null,null,null,null,null,null,null,null,null,null,null,null,null,null,null,null,null,"valor verdadero","Debe asegurar contenido"]
[null,null,"Plan",{"$f":"CONCATENATE(\"Prima Comercial Anual \",IF(D8=U3,V3,V4))","v":"Prima Comercial Anual US$"},{"$f":"CONCATENATE(\"Prima Comercial + IGV Anual \",IF($D$8=$U$3,$V$3,$V$4))","v":"Prima Comercial + IGV Anual US$"},null,null,null,"Descuento",{"$f":"E17","v":"Prima Comercial + IGV Anual US$"},{"$f":"IF(OR(K18=V13,K19=V12,K20=V16),\"Observaciones\",\" \")","v":" "}]
[null,null,"Plan Estandar",{"$f":"VLOOKUP(D133,D134:G137,2,FALSE)","v":170},{"$f":"IFERROR(D18*1.18,\"No Aplica\")","v":200.6},null,null,null,0,{"$f":"IFERROR(IF(I18=\"No Aplica\",\"No aplica\",IF(AND($D$8=$U$3,(E18*(1-I18)<I119)),I119,IF(AND($D$8=$U$4,E18*(1-I18)<M119),M119,E18*(1-I18)))),\"No Aplica\")","v":200.6},{"$f":"IF(O13>N13,V13,\" \")","v":" "}]
[null,null,"Plan Premium",{"$f":"VLOOKUP(D133,D138:G141,2,FALSE)","v":"No Aplica"},{"$f":"IFERROR(D19*1.18,\"No Aplica\")","v":"No Aplica"},null,null,null,{"$f":"I18","v":0},{"$f":"IFERROR(IF(I19=\"No Aplica\",\"No aplica\",IF(AND($D$8=$U$3,(E19*(1-I19)<J119)),J119,IF(AND($D$8=$U$4,E19*(1-I19)<N119),N119,E19*(1-I19)))),\"No Aplica\")","v":"No Aplica"},{"$f":"IF(AND(D8=U3,P13>V10),V12,IF(AND(D8=U4,P13>V10*V6),V12,\" \"))","v":" "}]
[null,null,"Plan Gold",{"$f":"VLOOKUP(D133,D142:G145,2,FALSE)","v":"No Aplica"},{"$f":"IFERROR(D20*1.18,\"No Aplica\")","v":"No Aplica"},null,null,null,{"$f":"I18","v":0},{"$f":"IFERROR(IF(I20=\"No Aplica\",\"No aplica\",IF(AND($D$8=$U$3,(E20*(1-I20)<K119)),K119,IF(AND($D$8=$U$4,E20*(1-I20)<O119),O119,E20*(1-I20)))),\"No Aplica\")","v":"No Aplica"},{"$f":"IF(AND(D15=W4,D18=\"No Aplica\"),V16,\" \")","v":" "}]
[null,null,null,null,null,null,null,null,null,null,null,null,null,null,{"$f":"+IF(D15=W3,1,0)","v":1}]
[]
[null,null,"Plan",{"$f":"CONCATENATE(\"Prima Comercial Anual \",IF(D8=U3,V3,V4))","v":"Prima Comercial Anual US$"},{"$f":"CONCATENATE(\"Prima Comercial + IGV Anual \",IF(D8=U3,V3,V4))","v":"Prima Comercial + IGV Anual US$"},null,null,null,"Descuento",{"$f":"E23","v":"Prima Comercial + IGV Anual US$"}]
[null,null,"Plan Estandar",{"$f":"IF($D$8=$U$3,I129,M129)","v":"No Aplica"},{"$f":"IFERROR(D24*1.18,\"No Aplica\")","v":"No Aplica"},null,null,null,0.1,{"$f":"IFERROR(IF(I24=\"No Aplica\",\"No aplica\",IF(AND($D$8=U3,(E24*(1-I24)<I119)),I119,IF(AND($D$8=U4,E24*(1-I24)<M119),M119,E24*(1-I24)))),\"No Aplica\")","v":"No Aplica"}]
[null,null,"Plan Premium",{"$f":"IF($D$8=$U$3,J129,N129)","v":"No Aplica"},{"$f":"IFERROR(D25*1.18,\"No Aplica\")","v":"No Aplica"},null,null,null,{"$f":"I24","v":0.1},{"$f":"IFERROR(IF(I25=\"No Aplica\",\"No aplica\",IF(AND($D$8=U3,(E25*(1-I25)<J119)),J119,IF(AND($D$8=U4,E25*(1-I25)<N119),N119,E25*(1-I25)))),\"No Aplica\")","v":"No Aplica"}]
[null,null,"Plan Gold",{"$f":"IF($D$8=$U$3,K129,O129)","v":"No Aplica"},{"$f":"IFERROR(D26*1.18,\"No Aplica\")","v":"No Aplica"},null,null,null,{"$f":"I24","v":0.1},{"$f":"IFERROR(IF(I26=\"No Aplica\",\"No aplica\",IF(AND($D$8=U4,(E26*(1-I26)<K119)),K119,IF(AND($D$8=U5,E26*(1-I26)<O119),O119,E26*(1-I26)))),\"No Aplica\")","v":"No Aplica"}]
[]
[]
[null,null,"Coberturas Principales",null,null,"SA Maxima Plan Estandar","SA Maxima Plan Premium","SA Maxima Plan Gold","Suma Asegurada",null,{"$f":"IF(D8=U3,V3,V4)","v":"US$"},"Deducibles a cargo del asegurado",null,null,null,null,null,null,null,"Plan Estandar",null,"Plan Premium",null,"Plan Gold"]
[null,null,null,null,null,null,null,null,"P. Estandar","P. Premium","P. Gold",null,null,null,null,null,null,null,null,"SA Dolares","SA Soles ","SA Dolares","SA Soles ","SA Dolares","SA Soles "]
[null,null,"I. PROGRAMA BASICO"]
[null,null,"Este seguro cubre la destrucción o daño físico directo de la vivienda y su contenido como consecuencia directa de: ",null,null,null,null,null,{"$f":"+P13","v":100000}]
[null,null,"Incendio y/o rayo, explosión, daños por agua, lluvia e inundación,  caída de aeronaves, impacto de vehículos terrestres, daños por humo.",null,null,"Hasta el 100% de la Suma Asegurada (SA) de la Vivienda + Contenido",null,null,{"$f":"P13","v":100000},{"$f":"P13","v":100000},{"$f":"P13","v":100000},{"$f":"Hoja1!B4","v":"10% del monto indemnizable mínimo US$ 200"}]
[null,null,"Terremoto, temblor, erupción volcánica, maremoto (Tsunami), salida de mar, marejada, oleaje.",null,null,null,null,null,{"$f":"P13","v":100000},{"$f":"P13","v":100000},{"$f":"P13","v":100000},{"$f":"Hoja1!B5","v":"1% de la Suma Asegurada de la Vivienda + Contenido, minimo US$ 500, lo que resulte mayor."}]
[null,null,"Huelga y conmoción civil, daño malicioso, vandalismo y/o terrorismo, limite agregado vigencia hasta.",null,null,null,null,null,{"$f":"P13","v":100000},{"$f":"P13","v":100000},{"$f":"P13","v":100000},{"$f":"Hoja1!B6","v":"5% del monto indemnizable mínimo US$ 200"}]
[]
[]
[]
[null,null,"Coberturas Adicionales "]
[null,null,"Gastos Extras, hasta el 20% de la Suma Asegurada de la Vivienda + Contenido, máximo:",null,null,30000,40000,50000,{"$f":"IF($D$8=U3,T40,U40)","v":20000},{"$f":"IF($D$8=U3,V40,W40)","v":20000},{"$f":"IF($D$8=U3,X40,Y40)","v":20000},"El de la cobertura afectada",null,null,null,null,null,null,null,{"$f":"IF($P$13*0.2<F40,$P$13*0.2,F40)","v":20000},{"$f":"IF($P$13*0.2<F40*$V$6,$P$13*0.2,F40*$V$6)","v":20000},{"$f":"IF($P$13*0.2<G40,$P$13*0.2,G40)","v":20000},{"$f":"IF($P$13*0.2<G40*$V$6,$P$13*0.2,G40*$V$6)","v":20000},{"$f":"IF($P$13*0.2<H40,$P$13*0.2,H40)","v":20000},{"$f":"IF($P$13*0.2<H40*$V$6,$P$13*0.2,H40*$V$6)","v":20000}]
[null,null,"Gastos de remoción de escombros, hasta el 20% de la Suma Asegurada de la Vivienda + Contenido, máximo:",null,null,30000,40000,50000,{"$f":"IF($D$8=U3,T41,U41)","v":20000},{"$f":"IF($D$8=U3,V41,W41)","v":20000},{"$f":"IF($D$8=U3,X41,Y41)","v":20000},"Sin Deducible",null,null,null,null,null,null,null,{"$f":"IF($P$13*0.2<F41,$P$13*0.2,F41)","v":20000},{"$f":"IF($P$13*0.2<F41*$V$6,$P$13*0.2,F41*$V$6)","v":20000},{"$f":"IF($P$13*0.2<G41,$P$13*0.2,G41)","v":20000},{"$f":"IF($P$13*0.2<G41*$V$6,$P$13*0.2,G41*$V$6)","v":20000},{"$f":"IF($P$13*0.2<H41,$P$13*0.2,H41)","v":20000},{"$f":"IF($P$13*0.2<H41*$V$6,$P$13*0.2,H41*$V$6)","v":20000}]
[null,null,"Gastos de extinción y contención del siniestro, hasta el 20% de la Suma Asegurada de la Vivienda + Contenido, máximo:",null,null,30000,40000,50000,{"$f":"IF($D$8=U3,T42,U42)","v":20000},{"$f":"IF($D$8=U3,V42,W42)","v":20000},{"$f":"IF($D$8=U3,X42,Y42)","v":20000},"Sin deducible",null,null,null,null,null,null,null,{"$f":"IF($P$13*0.2<F42,$P$13*0.2,F42)","v":20000},{"$f":"IF($P$13*0.2<F42*$V$6,$P$13*0.2,F42*$V$6)","v":20000},{"$f":"IF($P$13*0.2<G42,$P$13*0.2,G42)","v":20000},{"$f":"IF($P$13*0.2<G42*$V$6,$P$13*0.2,G42*$V$6)","v":20000},{"$f":"IF($P$13*0.2<H42,$P$13*0.2,H42)","v":20000},{"$f":"IF($P$13*0.2<H42*$V$6,$P$13*0.2,H42*$V$6)","v":20000}]
[null,null,"Rotura de vidrios, espejos y unidades sanitarias, hasta el 20% de la Suma Asegurada de la Vivienda, máximo: ",null,null,10000,20000,30000,{"$f":"IF($D$8=U3,T43,U43)","v":10000},{"$f":"IF($D$8=U3,V43,W43)","v":20000},{"$f":"IF($D$8=U3,X43,Y43)","v":20000},{"$f":"CONCATENATE(Hoja1!C7,\" \",Hoja1!D7,\" \",Hoja1!E7, ,Hoja1!F7)","v":"10% del monto indemnizable, mínimo US$ 30"},null,null,null,null,null,null,null,{"$f":"IF($N$13*0.2<F43,$N$13*0.2,F43)","v":10000},{"$f":"IF($N$13*0.2<F43*$V$6,$N$13*0.2,F43*$V$6)","v":20000},{"$f":"IF($N$13*0.2<G43,$N$13*0.2,G43)","v":20000},{"$f":"IF($N$13*0.2<G43*$V$6,$N$13*0.2,G43*$V$6)","v":20000},{"$f":"IF($N$13*0.2<H43,$N$13*0.2,H43)","v":20000},{"$f":"IF($N$13*0.2<H43*$V$6,$N$13*0.2,H43*$V$6)","v":20000}]
[null,null,"Robo de instalaciones fijas, hasta el 20% de la Suma Asegurada de la Vivienda, máximo:",null,null,10000,20000,30000,{"$f":"IF($D$8=U3,T44,U44)","v":10000},{"$f":"IF($D$8=U3,V44,W44)","v":20000},{"$f":"IF($D$8=U3,X44,Y44)","v":20000},{"$f":"CONCATENATE(Hoja1!C8,\" \",Hoja1!D8,\" \",Hoja1!E8, ,Hoja1!F8)","v":"15% del monto indemnizable, mínimo US$ 200"},null,null,null,null,null,null,null,{"$f":"IF($N$13*0.2<F44,$N$13*0.2,F44)","v":10000},{"$f":"IF($N$13*0.2<F44*$V$6,$N$13*0.2,F44*$V$6)","v":20000},{"$f":"IF($N$13*0.2<G44,$N$13*0.2,G44)","v":20000},{"$f":"IF($N$13*0.2<G44*$V$6,$N$13*0.2,G44*$V$6)","v":20000},{"$f":"IF($N$13*0.2<H44,$N$13*0.2,H44)","v":20000},{"$f":"IF($N$13*0.2<H44*$V$6,$N$13*0.2,H44*$V$6)","v":20000}]
[null,null,"Responsabilidad civil extracontractual Frente a Terceros, por evento y en agregado vigencia hasta:",null,null,50000,100000,200000,{"$f":"IF($D$8=U3,T45,U45)","v":50000},{"$f":"IF($D$8=U3,V45,W45)","v":100000},{"$f":"IF($D$8=U3,X45,Y45)","v":200000},{"$f":"CONCATENATE(Hoja1!C9,\" \",Hoja1!D9,\" \",Hoja1!E9, ,Hoja1!F9)","v":" US$ 200"},null,null,null,null,null,null,null,{"$f":"+F45","v":50000},{"$f":"+F45*V6","v":207500.00000000003},{"$f":"+G45","v":100000},{"$f":"+G45*V6","v":415000.00000000006},{"$f":"+H45","v":200000},{"$f":"+H45*V6","v":830000.00000000012}]
[null,null,"Gastos por emergencias médicas a terceros hasta US$ 1,000 por persona, y en agregado vigencia máximo:",null,null,1000,2000,3000,{"$f":"IF($D$8=U3,T46,U46)","v":1000},{"$f":"IF($D$8=U3,V46,W46)","v":2000},{"$f":"IF($D$8=U3,X46,Y46)","v":3000},"Sin deducible",null,null,null,null,null,null,null,{"$f":"+F46","v":1000},{"$f":"+F46*V6","v":4150},{"$f":"+G46","v":2000},{"$f":"+G46*V6","v":8300},{"$f":"+H46","v":3000},{"$f":"+H46*V6","v":12450.000000000002}]
[null,null,"Responsabilidad civil patronal (frente al trabajador del hogar), por evento y en agregado vigencia hasta:",null,null,10000,15000,20000,{"$f":"IF($D$8=U3,T47,U47)","v":10000},{"$f":"IF($D$8=U3,V47,W47)","v":15000},{"$f":"IF($D$8=U3,X47,Y47)","v":20000},"Sin deducible",null,null,null,null,null,null,null,{"$f":"+F47","v":10000},{"$f":"+F47*V6","v":41500},{"$f":"+G47","v":15000},{"$f":"+G47*V6","v":62250.000000000007},{"$f":"+H47","v":20000},{"$f":"+H47*V6","v":83000}]
[null,null,"Responsabilidad civil por posesión de mascotas por evento y en agregado vigencia, hasta:",null,null,1000,2000,3000,{"$f":"IF($D$8=U3,T48,U48)","v":1000},{"$f":"IF($D$8=U3,V48,W48)","v":2000},{"$f":"IF($D$8=U3,X48,Y48)","v":3000},"Sin deducible",null,null,null,null,null,null,null,{"$f":"+F48","v":1000},{"$f":"+F48*V6","v":4150},{"$f":"+G48","v":2000},{"$f":"+G48*V6","v":8300},{"$f":"+H48","v":3000},{"$f":"+H48*V6","v":12450.000000000002}]
[null,null,"II. PROGRAMA FULL"]
[null,null,"Robo de Bienes Contenidos en la Vivienda hasta:",null,null,"Hasta el 100% de la Suma Asegurada del Contenido",null,null,{"$f":"IF(OR(D15=W3,$O$13<V8),\"No Aplica\",$O$13)","v":"No Aplica"},{"$f":"I50","v":"No Aplica"},{"$f":"J50","v":"No Aplica"},{"$f":"IF(I50=\"No Aplica\",\"No Aplica\", Hoja1!B10)","v":"No Aplica"},null,null,null,null,null,null,null,{"$f":"O13","v":0},{"$f":"T50","v":0},{"$f":"U50","v":0},0,0,0]
[null,null,"Robo de Contenidos Especiales (joyas, alhajas, perlas, platería, relojes personales, obras de arte, pieles, instrumentos musicales y colecciones en general) dentro o fuera de los predios, con un límite por bien de US$1,000. La Suma Asegurada está limitada al 30% de la suma asegurada del Contenido, hasta: ",null,null,3000,5000,15000,{"$f":"IF($D$8=U3,T51,U51)","v":"No Aplica"},{"$f":"IF($D$8=U3,V51,W51)","v":"No Aplica"},{"$f":"IF($D$8=U3,X51,Y51)","v":"No Aplica"},{"$f":"IF(T51=\"No Aplica\",\"No Aplica\", Hoja1!B11)","v":"No Aplica"},null,null,null,null,null,null,null,{"$f":"IF(OR(D15=W3,$O$13<V8),\"No Aplica\",IF($O$13*0.3<F51,$O$13*0.3,F51))","v":"No Aplica"},{"$f":"IF(OR(D15=W3,$O$13<V8),\"No Aplica\",IF($O$13*0.3<F51*$V$6,$O$13*0.3,F51*$V$6))","v":"No Aplica"},{"$f":"IF(OR(D15=W3,$O$13<V8),\"No Aplica\",IF($O$13*0.3<G51,$O$13*0.3,G51))","v":"No Aplica"},{"$f":"IF(OR(D15=W3,$O$13<V8),\"No Aplica\",IF($O$13*0.3<G51*$V$6,$O$13*0.3,G51*$V$6))","v":"No Aplica"},{"$f":"IF(OR(D15=W3,$O$13<V8),\"No Aplica\",IF($O$13*0.3<H51,$O$13*0.3,H51))","v":"No Aplica"},{"$f":"IF(OR(D15=W3,$O$13<V8),\"No Aplica\",IF($O$13*0.3<H51*$V$6,$O$13*0.3,H51*$V$6))","v":"No Aplica"}]
[null,null,"Robo de dinero en Efectivo dentro de la Vivienda, hasta:",null,null,500,750,1000,{"$f":"IF($D$8=U3,T52,U52)","v":"No Aplica"},{"$f":"IF($D$8=U3,V52,W52)","v":"No Aplica"},{"$f":"IF($D$8=U3,X52,Y52)","v":"No Aplica"},{"$f":"IF(T52=\"No Aplica\",\"No Aplica\",Hoja1!B12)","v":"No Aplica"},null,null,null,null,null,null,null,{"$f":"IF(OR(D15=W3,$O$13<V8),\"No Aplica\",F52)","v":"No Aplica"},{"$f":"IF(OR(D15=W3,$O$13<V8),\"No Aplica\",F52*$V$6)","v":"No Aplica"},{"$f":"IF(OR(D15=W3,$O$13<V8),\"No Aplica\",G52)","v":"No Aplica"},{"$f":"IF(OR(D15=W3,$O$13<V8),\"No Aplica\",G52*$V$6)","v":"No Aplica"},{"$f":"IF(OR(D15=W3,$O$13<V8),\"No Aplica\",H52)","v":"No Aplica"},{"$f":"IF(OR(D15=W3,$O$13<V8),\"No Aplica\",H52*$V$6)","v":"No Aplica"}]
[null,null,"Robo de dinero en tránsito solo por asalto, hasta:",null,null,500,750,1000,{"$f":"IF($D$8=U3,T53,U53)","v":"No Aplica"},{"$f":"IF($D$8=U3,V53,W53)","v":"No Aplica"},{"$f":"IF($D$8=U3,X53,Y53)","v":"No Aplica"},{"$f":"IF(T53=\"No Aplica\",\"No Aplica\", Hoja1!B13)","v":"No Aplica"},null,null,null,null,null,null,null,{"$f":"IF(OR(D15=W3,O13<V8),\"No Aplica\",F53)","v":"No Aplica"},{"$f":"IF(OR(D15=W3,O13<V8),\"No Aplica\",F53*$V$6)","v":"No Aplica"},{"$f":"IF(OR(D15=W3,$O$13<V8),\"No Aplica\",G53)","v":"No Aplica"},{"$f":"IF(OR(D15=W3,$O$13<V8),\"No Aplica\",G53*$V$6)","v":"No Aplica"},{"$f":"IF(OR(D15=W3,$O$13<V8),\"No Aplica\",H53)","v":"No Aplica"},{"$f":"IF(OR(D15=W3,$O$13<V8),\"No Aplica\",H53*$V$6)","v":"No Aplica"}]
[null,null,"Daños internos de equipos electrónicos y equipos eléctricos, hasta el 10% de la Suma Asegurada del Contenido, máximo:",null,null,3000,4000,5000,{"$f":"IF($D$8=U3,T54,U54)","v":"No Aplica"},{"$f":"IF($D$8=U3,V54,W54)","v":"No Aplica"},{"$f":"IF($D$8=U3,X54,Y54)","v":"No Aplica"},{"$f":"IF(T54=\"No Aplica\",\"No Aplica\", Hoja1!B14)","v":"No Aplica"},null,null,null,null,null,null,null,{"$f":"IF(OR(D15=W3,$O$13<V8),\"No Aplica\",IF($O$13*0.1<F54,$O$13*0.1,F54))","v":"No Aplica"},{"$f":"IF(OR(D15=W3,$O$13<V8),\"No Aplica\",IF($O$13*0.1<F54*$V$6,$O$13*0.1,F54*$V$6))","v":"No Aplica"},{"$f":"IF(OR(D15=W3,$O$13<V8),\"No Aplica\",IF($O$13*0.1<G54,$O$13*0.1,G54))","v":"No Aplica"},{"$f":"IF(OR(D15=W3,$O$13<V8),\"No Aplica\",IF($O$13*0.1<G54*$V$6,$O$13*0.1,G54*$V$6))","v":"No Aplica"},{"$f":"IF(OR(D15=W3,$O$13<V8),\"No Aplica\",IF($O$13*0.1<H54,$O$13*0.1,H54))","v":"No Aplica"},{"$f":"IF(OR(D15=W3,$O$13<V8),\"No Aplica\",IF($O$13*0.1<H54*$V$6,$O$13*0.1,H54*$V$6))","v":"No Aplica"}]
[null,null,"Asistencia médica urgente por lesiones en un robo con un límite por persona de US$1,000 y en agregado vigencia máximo:",null,null,5000,7500,10000,{"$f":"IF($D$8=U3,T55,U55)","v":"No Aplica"},{"$f":"IF($D$8=U3,V55,W55)","v":"No Aplica"},{"$f":"IF($D$8=U3,X55,Y55)","v":"No Aplica"},{"$f":"IF(T55=\"No Aplica\",\"No Aplica\", Hoja1!B15)","v":"No Aplica"},null,null,null,null,null,null,null,{"$f":"IF(OR(D15=W3,$O$13<V8),\"No Aplica\",F55)","v":"No Aplica"},{"$f":"IF(OR(D15=W3,$O$13<V8),\"No Aplica\",F55*$V$6)","v":"No Aplica"},{"$f":"IF(OR(D15=W3,$O$13<V8),\"No Aplica\",G55)","v":"No Aplica"},{"$f":"IF(OR(D15=W3,$O$13<V8),\"No Aplica\",G55*$V$6)","v":"No Aplica"},{"$f":"IF(OR(D15=W3,$O$13<V8),\"No Aplica\",H55)","v":"No Aplica"},{"$f":"IF(OR(D15=W3,$O$13<V8),\"No Aplica\",H55*$V$6)","v":"No Aplica"}]
[null,null,"Alojamiento temporal por inhabilitación de la vivienda, con un límite mensual de US$ 1,000 y en agregado vigencia máximo: ",null,null,3000,5000,10000,{"$f":"IF(I55=\"No Aplica\",\"No Aplica\",IF($D$8=U3,T56,U56))","v":"No Aplica"},{"$f":"IF(I55=\"No Aplica\",\" No Aplica\",IF($D$8=U3,V56,W56))","v":" No Aplica"},{"$f":"IF(I55=\"No Aplica\",\" No Aplica\",IF($D$8=U3,X56,Y56))","v":" No Aplica"},{"$f":"IF(T56=\"No Aplica\",\"No Aplica\", Hoja1!B17)","v":"No Aplica"},null,null,null,null,null,null,null,{"$f":"IF(OR(D15=W3,$O$13<V8),\"No Aplica\",F56)","v":"No Aplica"},{"$f":"IF(OR(D15=W3,$O$13<V8),\"No Aplica\",F56*$V$6)","v":"No Aplica"},{"$f":"IF(OR(D15=W3,$O$13<V8),\"No Aplica\",G56)","v":"No Aplica"},{"$f":"IF(OR(D15=W3,$O$13<V8),\"No Aplica\",G56*$V$6)","v":"No Aplica"},{"$f":"IF(OR(D15=W3,$O$13<V8),\"No Aplica\",H56)","v":"No Aplica"},{"$f":"IF(OR(D15=W3,$O$13<V8),\"No Aplica\",H56*$V$6)","v":"No Aplica"}]
[null,null,"Daños durante el traslado del contenido asegurado al alojamiento temporal, hasta el  50% de la Suma Asegurada del Contenido, máximo:",null,null,3000,5000,10000,{"$f":"IF($D$8=U3,T57,U57)","v":"No Aplica"},{"$f":"IF($D$8=U3,V57,W57)","v":"No Aplica"},{"$f":"IF($D$8=U3,X57,Y57)","v":"No Aplica"},{"$f":"IF(T57=\"No Aplica\",\"No Aplica\", Hoja1!B18)","v":"No Aplica"},null,null,null,null,null,null,null,{"$f":"IF(OR(D15=W3,$O$13<V8),\"No Aplica\",IF($O$13*0.5<F57,$O$13*0.5,F57))","v":"No Aplica"},{"$f":"IF(OR(D15=W3,$O$13<V8),\"No Aplica\",IF($O$13*0.5<F57*$V$6,$O$13*0.5,F57*$V$6))","v":"No Aplica"},{"$f":"IF(OR(D15=W3,$O$13<V8),\"No Aplica\",IF($O$13*0.5<G57,$O$13*0.5,G57))","v":"No Aplica"},{"$f":"IF(OR(D15=W3,$O$13<V8),\"No Aplica\",IF($O$13*0.5<G57*$V$6,$O$13*0.5,G57*$V$6))","v":"No Aplica"},{"$f":"IF(OR(D15=W3,$O$13<V8),\"No Aplica\",IF($O$13*0.5<H57,$O$13*0.5,H57))","v":"No Aplica"},{"$f":"IF(OR(D15=W3,$O$13<V8),\"No Aplica\",IF($O$13*0.5<H57*$V$6,$O$13*0.5,H57*$V$6))","v":"No Aplica"}]
[null,null,"Perdida de alimentos en equipos de refrigeración, hasta el 5% de la Suma Asegurada del Contenido, máximo:",null,null,750,1000,1500,{"$f":"IF($D$8=U3,T58,U58)","v":"No Aplica"},{"$f":"IF($D$8=U3,V58,W58)","v":"No Aplica"},{"$f":"IF($D$8=U3,X58,Y58)","v":"No Aplica"},{"$f":"IF(T58=\"No Aplica\",\"No Aplica\", Hoja1!B19)","v":"No Aplica"},null,null,null,null,null,null,null,{"$f":"IF(OR(D15=W3,$O$13<V8),\"No Aplica\",IF($O$13*0.05<F58,$O$13*0.05,F58))","v":"No Aplica"},{"$f":"IF(OR(D15=W3,$O$13<V8),\"No Aplica\",IF($O$13*0.05<F58*$V$6,$O$13*0.05,F58*$V$6))","v":"No Aplica"},{"$f":"IF(OR(D15=W3,$O$13<V8),\"No Aplica\",IF($O$13*0.05<G58,$O$13*0.05,G58))","v":"No Aplica"},{"$f":"IF(OR(D15=W3,$O$13<V8),\"No Aplica\",IF($O$13*0.05<G58*$V$6,$O$13*0.05,G58*$V$6))","v":"No Aplica"},{"$f":"IF(OR(D15=W3,$O$13<V8),\"No Aplica\",IF($O$13*0.05<H58,$O$13*0.05,H58))","v":"No Aplica"},{"$f":"IF(OR(D15=W3,$O$13<V8),\"No Aplica\",IF($O$13*0.05<H58*$V$6,$O$13*0.05,H58*$V$6))","v":"No Aplica"}]
[null,null,"Pérdida de equipaje por viaje dentro o fuera del país, hasta el 10% de la Suma Asegurada del Contenido, máximo:",null,null,750,1000,1500,{"$f":"IF($D$8=U3,T59,U59)","v":"No Aplica"},{"$f":"IF($D$8=U3,V59,W59)","v":"No Aplica"},{"$f":"IF($D$8=U3,X59,Y59)","v":"No Aplica"},{"$f":"IF(T59=\"No Aplica\",\"No Aplica\", Hoja1!B20)","v":"No Aplica"},null,null,null,null,null,null,null,{"$f":"IF(OR(D15=W3,$O$13<V8),\"No Aplica\",IF($O$13*0.1<F59,$O$13*0.1,F59))","v":"No Aplica"},{"$f":"IF(OR(D15=W3,$O$13<V8),\"No Aplica\",IF($O$13*0.1<F59*$V$6,$O$13*0.1,F59*$V$6))","v":"No Aplica"},{"$f":"IF(OR(D15=W3,$O$13<V8),\"No Aplica\",IF($O$13*0.1<G59,$O$13*0.1,G59))","v":"No Aplica"},{"$f":"IF(OR(D15=W3,$O$13<V8),\"No Aplica\",IF($O$13*0.1<G59*$V$6,$O$13*0.1,G59*$V$6))","v":"No Aplica"},{"$f":"IF(OR(D15=W3,$O$13<V8),\"No Aplica\",IF($O$13*0.1<H59,$O$13*0.1,H59))","v":"No Aplica"},{"$f":"IF(OR(D15=W3,$O$13<V8),\"No Aplica\",IF($O$13*0.1<H59*$V$6,$O$13*0.1,H59*$V$6))","v":"No Aplica"}]
[null,null,"Deshonestidad o apropiación ilícita de trabajadores del hogar, por evento y en agregado vigencia hasta:",null,null,750,1000,2000,{"$f":"IF($D$8=U3,T60,U60)","v":"No Aplica"},{"$f":"IF($D$8=U3,V60,W60)","v":"No Aplica"},{"$f":"IF($D$8=U3,X60,Y60)","v":"No Aplica"},{"$f":"IF(T60=\"No Aplica\",\"No Aplica\", Hoja1!B21)","v":"No Aplica"},null,null,null,null,null,null,null,{"$f":"IF(OR(D15=W3,$O$13<V8),\"No Aplica\",F60)","v":"No Aplica"},{"$f":"IF(OR(D15=W3,$O$13<V8),\"No Aplica\",(F60*$V$6))","v":"No Aplica"},{"$f":"IF(OR(D15=W3,$O$13<V8),\"No Aplica\",G60)","v":"No Aplica"},{"$f":"IF(OR(D15=W3,$O$13<V8),\"No Aplica\",(G60*$V$6))","v":"No Aplica"},{"$f":"IF(OR(D15=W3,$O$13<V8),\"No Aplica\",H60)","v":"No Aplica"},{"$f":"IF(OR(D15=W3,$O$13<V8),\"No Aplica\",(H60*$V$6))","v":"No Aplica"}]
[null,null,"Compensación por Muerte accidental del Asegurado o de su cónyuge o conviviente ",null,null,7500,10000,20000,{"$f":"IF($D$8=U3,T61,U61)","v":"No Aplica"},{"$f":"IF($D$8=U3,V61,W61)","v":"No Aplica"},{"$f":"IF($D$8=U3,X61,Y61)","v":"No Aplica"},{"$f":"IF(T61=\"No Aplica\",\"No Aplica\", Hoja1!B22)","v":"No Aplica"},null,null,null,null,null,null,null,{"$f":"IF(OR(D15=W3,$O$13<V8),\"No Aplica\",F61)","v":"No Aplica"},{"$f":"IF(OR(D15=W3,$O$13<V8),\"No Aplica\",(F61*$V$6))","v":"No Aplica"},{"$f":"IF(OR(D15=W3,$O$13<V8),\"No Aplica\",G61)","v":"No Aplica"},{"$f":"IF(OR(D15=W3,$O$13<V8),\"No Aplica\",(G61*$V$6))","v":"No Aplica"},{"$f":"IF(OR(D15=W3,$O$13<V8),\"No Aplica\",H61)","v":"No Aplica"},{"$f":"IF(OR(D15=W3,$O$13<V8),\"No Aplica\",(H61*$V$6))","v":"No Aplica"}]
[null,null,"Gastos de Curación de empleados (Trabajadores del hogar), hasta  US$ 1,000 por evento, y en agregado vigencia hasta:",null,null,1000,2000,3000,{"$f":"IF($D$8=U3,T62,U62)","v":"No Aplica"},{"$f":"IF($D$8=U3,V62,W62)","v":"No Aplica"},{"$f":"IF($D$8=U3,X62,Y62)","v":"No Aplica"},{"$f":"IF(T62=\"No Aplica\",\"No Aplica\", Hoja1!B23)","v":"No Aplica"},null,null,null,null,null,null,null,{"$f":"IF(OR(D15=W3,$O$13<V8),\"No Aplica\",F62)","v":"No Aplica"},{"$f":"IF(OR(D15=W3,$O$13<V8),\"No Aplica\",(F62*$V$6))","v":"No Aplica"},{"$f":"IF(OR(D15=W3,$O$13<V8),\"No Aplica\",G62)","v":"No Aplica"},{"$f":"IF(OR(D15=W3,$O$13<V8),\"No Aplica\",(G62*$V$6))","v":"No Aplica"},{"$f":"IF(OR(D15=W3,$O$13<V8),\"No Aplica\",H62)","v":"No Aplica"},{"$f":"IF(OR(D15=W3,$O$13<V8),\"No Aplica\",(H62*$V$6))","v":"No Aplica"}]
[null,null,"Gastos de sepelio para el asegurado o su cónyuge o hijos, hasta",null,null,1000,2000,3000,{"$f":"IF($D$8=U3,T63,U63)","v":"No Aplica"},{"$f":"IF($D$8=U3,V63,W63)","v":"No Aplica"},{"$f":"IF($D$8=U3,X63,Y63)","v":"No Aplica"},{"$f":"IF(T63=\"No Aplica\",\"No Aplica\", Hoja1!B24)","v":"No Aplica"},null,null,null,null,null,null,null,{"$f":"IF(OR(D15=W3,$O$13<V8),\"No Aplica\",F63)","v":"No Aplica"},{"$f":"IF(OR(D15=W3,$O$13<V8),\"No Aplica\",(F63*$V$6))","v":"No Aplica"},{"$f":"IF(OR(D15=W3,$O$13<V8),\"No Aplica\",G63)","v":"No Aplica"},{"$f":"IF(OR(D15=W3,$O$13<V8),\"No Aplica\",(G63*$V$6))","v":"No Aplica"},{"$f":"IF(OR(D15=W3,$O$13<V8),\"No Aplica\",H63)","v":"No Aplica"},{"$f":"IF(OR(D15=W3,$O$13<V8),\"No Aplica\",(H63*$V$6))","v":"No Aplica"}]
[null,null,"Gastos de sepelio para el trabajador del hogar, hasta",null,null,1000,2000,3000,{"$f":"IF($D$8=U3,T64,U64)","v":"No Aplica"},{"$f":"IF($D$8=U3,V64,W64)","v":"No Aplica"},{"$f":"IF($D$8=U3,X64,Y64)","v":"No Aplica"},{"$f":"IF(T64=\"No Aplica\",\"No Aplica\", Hoja1!B25)","v":"No Aplica"},null,null,null,null,null,null,null,{"$f":"IF(OR(D15=W3,$O$13<V8),\"No Aplica\",F64)","v":"No Aplica"},{"$f":"IF(OR(D15=W3,$O$13<V8),\"No Aplica\",(F64*$V$6))","v":"No Aplica"},{"$f":"IF(OR(D15=W3,$O$13<V8),\"No Aplica\",G64)","v":"No Aplica"},{"$f":"IF(OR(D15=W3,$O$13<V8),\"No Aplica\",(G64*$V$6))","v":"No Aplica"},{"$f":"IF(OR(D15=W3,$O$13<V8),\"No Aplica\",H64)","v":"No Aplica"},{"$f":"IF(OR(D15=W3,$O$13<V8),\"No Aplica\",(H64*$V$6))","v":"No Aplica"}]
[]
[null,null,"Claúsulas "]
[null,null,"Póliza de Seguro Domiciliario ","014 CL Gastos eme. Méd. Ter. ",null,null,null,null,"015 CL RC patronal",null,"021 CL RC posesión de mascotas ",null,null,"027 CL Gastos Extras"]
[null,null,"035 CL Robo de instalaciones fijas ","038 CL Reemplazo",null,null,null,null,"004 CL Muerte acc. Ase. Cony. o Conv. ",null,"005 CL Gastos curacion empleados",null,null,"006 CL Daños int. eq. "]
[null,null,"008 CL Dinero en tránsito","009 CL Dinero dentro de la vivienda ",null,null,null,null,"010 CL Asistencia médica urgente",null,"011 CL Aloj. Temp. Inha. Viv. ",null,null,"012 CL Daños durante traslado contenido"]
[null,null,"013 CL Pérdida de alimentos ","016 CL Pérdida de equipaje ",null,null,null,null,"017 CL Deshonestidad trab. hogar",null,"019 CL Gastos sep. Aseg/conyuge/hijos ",null,null,"020 CL Gastos sepelio trabajador del hogar "]
[null,null,"022 CL Robo Cont. Espec "]
[null,null,"Condiciones Especiales "]
[null,null,"- Las Sumas Aseguradas son límites únicos para la vigencia del seguro y se encuentran sujetas a los limites por evento y en agregado vigencia indicados en cada cobertura."]
[null,null,{"$f":"IF(I13=AB3,\"- Condición especial de Valor Comercial\",\" \")","v":" "}]
[null,null,{"$f":"IF(D7=AC3,\"- Rehabilitacion Automática de la Suma Asegurada (excepto para coberturas con suma asegurada en agregado vigencia); Propiedades fuera de control del asegurado; Reposición; Errores y omisiones\",\" \")","v":"- Rehabilitacion Automática de la Suma Asegurada (excepto para coberturas con suma asegurada en agregado vigencia); Propiedades fuera de control del asegurado; Reposición; Errores y omisiones"}]
[null,null,"Recomendaciones "]
[null,null," - Tener instalados interruptores de tipo termomagnético o de tipo diferencial. No usar llaves de cuchilla ni conductores mellizos.\n - Mantener el cableado eléctrico entubado o empotrado, no debe existir presencia de cables sueltos.\n - Contar con un (01) extintor de PQS de 2 kgs o más de capacidad."]
[]
[null,null,"Beneficios "]
[null,null,"Linea Positiva Salud"]
[null,null," - Consejería médica gratuita vía telefónica "]
[null,null,"Asistencias Domiciliarias "]
[]
[null,null,"Asistencia",null,"Copago",null,null,null,"Sublimite *","Eventos "]
[null,null,"Cerrajeria ",null,"-",null,null,null,450,"3 eventos"]
[null,null,"Gasfiteria",null,"-",null,null,null,850,"3 eventos"]
[null,null,"Electricidad",null,"-",null,null,null,850,"2 eventos"]
[null,null,"Vidrieria ",null,"-",null,null,null,850,"2 eventos"]
[null,null,"Housekeeping",null,30,null,null,null,350,"2 eventos"]
[null,null,"Ambulancia por emergencia médica o accidental",null,"-",null,null,null,1500,"3 eventos"]
[null,null,"Consulta médica a domicilio",null,20,null,null,null,400,"3 eventos"]
[null,null,"Consulta médica por teléfono",null,"-",null,null,null,"Sin límite"]
[null,null,"Consulta médica para trabajadoras de hogar",null,30,null,null,null,400,"3 eventos"]
[null,null,"Mensajería en recojo y paquetes (hasta 5 kilos)",null,"-",null,null,null,600,"2 eventos"]
[null,null,"Valet Parking",null,"-",null,null,null,"Sin límite","2 eventos"]
[null,null,"Mozo a domicilio",null,"-",null,null,null,"1 mozo","2 eventos"]
[null,null,"Orientación Veterinaria Telefónica",null,"-",null,null,null,"Sin límite","-"]
[null,null,"Asesoría Legal",null,"-",null,null,null,"Sin límite","-"]
[null,null,"Servicios de referencia y coordinación",null,"-",null,null,null,"Sin límite","-"]
[null,null,"Mantenimiento de Preventivo de Línea Blanca",null,"-",null,null,null,250,"2 eventos"]
[null,null,"* El Sublimite señalado por cada asistencia corresponde al importe máximo del servicio brindado dentro de la vigencia de la póliza.\nLas asistencias están disponibles en algunas ciudades, sujetos al tipo de servicio requerido y al radio de acción. Se aplican restricciones por zona y horario. "]
[]
[null,null,"Exclusiones "]
[null,null," - Viviendas en cuyo interior se efectúen labores comerciales, industriales o de servicios"]
[null,null," - Viviendas ubicadas a una distancia menor a 500 metros del mar "]
[null,null," - Viviendas, casas y departamentos cuyo material de construcción predomínate NO sea ladrillo, cemento y fierro "]
[null,null," - Viviendas ubicadas en asentamientos informales o asentamientos humanos o en lotes no urbanizados o en lotes rurales o en condición de infravivienda"]
[]
[null,null,"Importante"]
[null,null," - El Asegurado deberá completar y firmar la Solicitud de Seguro"]
[]
[]
[null,null,null,null,null,null,null,null,"Dólares ( US$ )","Dólares ( US$ )","Dólares ( US$ )",null,"Sol ( S/ )","Sol ( S/ )","Sol ( S/ )"]
[null,null,"TASA NETA ANUAL COBERTURA PRINCIPAL (Aplicado al Valor Declarado de Vivienda + Contenido asegurada)",null,null,null,null,null,1.65E-3,1.65E-3,1.65E-3]
[null,null,"TASA NETA ANUAL COB. ADICIONALES (Aplicado al Valor Declarado del contenido Asegurado",null,null,null,null,null,7.0000000000000001E-3,0.01,1.2E-2]
[null,null,"RECARGO SOLO EDIFICIO",null,null,null,null,null,0,50,80,null,null,{"$f":"J116*V6","v":207.50000000000003},{"$f":"K116*V6","v":332}]
[null,null,"PRIMA NETA MINIMA POR PLAN",null,null,null,null,null,100,150,180,null,{"$f":"I117*$V$6","v":415.00000000000006},{"$f":"J117*$V$6","v":622.5},{"$f":"K117*$V$6","v":747.00000000000011}]
[null,null,"DERECHO DE EMISION MINIMO",null,null,null,null,null,5,{"$f":"I118","v":5},{"$f":"I118","v":5},null,18,{"$f":"M118","v":18},{"$f":"M118","v":18}]
[null,null,"PRIMA COMERCIAL + IGV MINIMA",null,null,null,null,null,{"$f":"(I117+I118)*1.18","v":123.89999999999999},{"$f":"(J117+J118)*1.18","v":182.89999999999998},{"$f":"(K117+K118)*1.18","v":218.29999999999998},null,{"$f":"(M117+M118)*1.18","v":510.94000000000005},{"$f":"(N117+N118)*1.18","v":755.79},{"$f":"(O117+O118)*1.18","v":902.7}]
[null,null,"PRIMA NETA COB PRINCIPAL EDIFICIO",null,null,null,null,null,{"$f":"I114*P13","v":165},{"$f":"J114*P13","v":165},{"$f":"K114*P13","v":165},null,{"$f":"I120","v":165},165,165]
[null,null,"PRIMA NETA COB ADICIONAL CONTENIDO",null,null,null,null,null,{"$f":"I115*O13","v":0},{"$f":"J115*O13","v":0},{"$f":"K115*O13","v":0},null,0,0,0]
[null,null,"DERECHO DE EMISION COB PRINC",null,0.03,null,null,null,{"$f":"I120*$E$122","v":4.95},{"$f":"J120*$E$122","v":4.95},{"$f":"K120*$E$122","v":4.95},null,4.95,4.95,4.95]
[null,null,"PRIMA COMERCIAL COB PRINC",null,null,null,null,null,{"$f":"I120+IF(I122<I118,I118,I122)","v":170},{"$f":"J120+IF(J122<J118,J118,J122)","v":170},{"$f":"K120+IF(K122<K118,K118,K122)","v":170},null,{"$f":"M120+IF(M122<M118,M118,M122)","v":183},{"$f":"N120+IF(N122<N118,N118,N122)","v":183},{"$f":"O120+IF(O122<O118,O118,O122)","v":183}]
[null,null,"VALIDACION PC MINIMA COB PRINC",null,null,null,null,null,{"$f":"IF(I123<I117+I118,I117+I118,I123)","v":170},{"$f":"IF(J123<J117+J118,J117+J118,J123)","v":170},{"$f":"IF(K123<K117+K118,K117+K118,K123)","v":185},null,{"$f":"IF(M123<M117+M118,M117+M118,M123)","v":433.00000000000006},{"$f":"IF(N123<N117+N118,N117+N118,N123)","v":640.5},{"$f":"IF(O123<O117+O118,O117+O118,O123)","v":765.00000000000011}]
[null,null,"VALIDACION RESTRICCION PC COB PRINC",null,null,null,null,null,{"$f":"IF(AND($E$130=\"SI\",$E$132=\"NO\"),I124,\"No Aplica\")","v":170},"No Aplica","No Aplica",null,{"$f":"IF(AND($E$130=\"SI\",$E$132=\"NO\"),M124,\"No Aplica\")","v":433.00000000000006},"No Aplica","No Aplica"]
[null,null,"DERECHO DE EMISION COB PRINC + ADIC",null,{"$f":"E122","v":0.03},null,null,null,{"$f":"(I120+I121)*$E$126","v":4.95},{"$f":"(J120+J121)*$E$126","v":4.95},{"$f":"(K120+K121)*$E$126","v":4.95},null,4.95,4.95,4.95]
[null,null,"PRIMA COMERCIAL CON PRINC + ADIC",null,null,null,null,null,{"$f":"(I120+I121)+IF(I126<I118,I118,I126)","v":170},{"$f":"(J120+J121)+IF(J126<J118,J118,J126)","v":170},{"$f":"(K120+K121)+IF(K126<K118,K118,K126)","v":170},null,{"$f":"(M120+M121)+IF(M126<M118,M118,M126)","v":183},{"$f":"(N120+N121)+IF(N126<N118,N118,N126)","v":183},{"$f":"(O120+O121)+IF(O126<O118,O118,O126)","v":183}]
[null,null,"VALIDACION PC MINIMA COB PRINC +  ADIC",null,null,null,null,null,{"$f":"IF(I127<I117+I118,I117+I118,I127)","v":170},{"$f":"IF(J127<J117+J118,J117+J118,J127)","v":170},{"$f":"IF(K127<K117+K118,K117+K118,K127)","v":185},null,{"$f":"IF(M127<M117+M118,M117+M118,M127)","v":433.00000000000006},{"$f":"IF(N127<N117+N118,N117+N118,N127)","v":640.5},{"$f":"IF(O127<O117+O118,O117+O118,O127)","v":765.00000000000011}]
[null,null,"VALIDACION RESTRICCION PC COB PRINC + ADIC",null,null,null,null,null,{"$f":"IF(AND($E$130=\"SI\",$E$131=\"SI\",$E$132=\"NO\"),I128,\"No Aplica\")","v":"No Aplica"},{"$f":"IF(AND($E$130=\"SI\",$E$131=\"SI\",$E$132=\"NO\"),J128,\"No Aplica\")","v":"No Aplica"},{"$f":"IF(AND($E$130=\"SI\",$E$131=\"SI\",$E$132=\"NO\"),K128,\"No Aplica\")","v":"No Aplica"},null,{"$f":"IF(AND($E$130=\"SI\",$E$131=\"SI\",$E$132=\"NO\"),M128,\"No Aplica\")","v":"No Aplica"},{"$f":"IF(AND($E$130=\"SI\",$E$131=\"SI\",$E$132=\"NO\"),N128,\"No Aplica\")","v":"No Aplica"},{"$f":"IF(AND($E$130=\"SI\",$E$131=\"SI\",$E$132=\"NO\"),O128,\"No Aplica\")","v":"No Aplica"}]
[null,null,"ASEGURA EDIFICIO?",null,{"$f":"IF(N13>1,\"SI\",\"NO\")","v":"SI"}]
[null,null,"ASEGURA CONTENIDO?",null,{"$f":"IF(O13>V8,\"SI\",\"NO\")","v":"NO"}]
[null,null,"SA EXCEDE LIMITE ASEGURADO?",null,{"$f":"IF(AND(D8=U3,P13>V10),\"SI\",IF(AND(D8=U4,P13>V10*V6),\"SI\",\"NO\"))","v":"NO"}]
[null,null,null,{"$f":"CONCATENATE(D15&D8)","v":"BASICAS Dólares (US$)"},"PC","PC + IGV","Descuento"]
[null,null,"Plan Estandar","BASICAS Dólares (US$)",{"$f":"I125","v":170},{"$f":"E134*1.18","v":200.6},{"$f":"IFERROR(IF(F134*(1-$I$18)<I119,F134,F134*(1-$I$18)),\"No Aplica\")","v":200.6}]
[null,null,"Plan Estandar","BASICAS Sol ( S/ )",{"$f":"M125","v":433.00000000000006},510.94000000000005,{"$f":"IFERROR(IF(F135*(1-$I$18)<M119,F135,F135*(1-$I$18)),\"No Aplica\")","v":510.94000000000005}]
[null,null,"Plan Estandar","COMPLETAS Dólares (US$)",{"$f":"I129","v":"No Aplica"},{"$error":"#VALUE!"},{"$f":"IFERROR(IF(F136*(1-$I$18)<I119,F136,F136*(1-$I$18)),\"No Aplica\")","v":"No Aplica"}]
[null,null,"Plan Estandar","COMPLETAS Sol ( S/ )",{"$f":"M129","v":"No Aplica"},{"$error":"#VALUE!"},{"$f":"IFERROR(IF(F137*(1-$I$18)<M119,F137,F137*(1-$I$18)),\"No Aplica\")","v":"No Aplica"}]
[null,null,"Plan Premium","BASICAS Dólares (US$)",{"$f":"J125","v":"No Aplica"},{"$error":"#VALUE!"},{"$f":"IFERROR(IF(F138*(1-$I$18)<J119,F138,F138*(1-$I$18)),\"No Aplica\")","v":"No Aplica"}]
[null,null,"Plan Premium","BASICAS Sol ( S/ )",{"$f":"N125","v":"No Aplica"},{"$error":"#VALUE!"},{"$f":"IFERROR(IF(F139*(1-$I$18)<N119,F139,F139*(1-$I$18)),\"No Aplica\")","v":"No Aplica"}]
[null,null,"Plan Premium","COMPLETAS Dólares (US$)",{"$f":"J129","v":"No Aplica"},{"$error":"#VALUE!"},{"$f":"IFERROR(IF(F140*(1-$I$18)<J119,F140,F140*(1-$I$18)),\"No Aplica\")","v":"No Aplica"}]
[null,null,"Plan Premium","COMPLETAS Sol ( S/ )",{"$f":"N129","v":"No Aplica"},{"$error":"#VALUE!"},{"$f":"IFERROR(IF(F141*(1-$I$18)<N119,F141,F141*(1-$I$18)),\"No Aplica\")","v":"No Aplica"}]
[null,null,"Plan Gold","BASICAS Dólares (US$)",{"$f":"K125","v":"No Aplica"},{"$error":"#VALUE!"},{"$f":"IFERROR(IF(F142*(1-$I$18)<K119,F142,F142*(1-$I$18)),\"No Aplica\")","v":"No Aplica"}]
[null,null,"Plan Gold","BASICAS Sol ( S/ )",{"$f":"O125","v":"No Aplica"},{"$error":"#VALUE!"},{"$f":"IFERROR(IF(F143*(1-$I$18)<O119,F143,F143*(1-$I$18)),\"No Aplica\")","v":"No Aplica"}]
[null,null,"Plan Gold","COMPLETAS Dólares (US$)",{"$f":"K129","v":"No Aplica"},{"$error":"#VALUE!"},{"$f":"IFERROR(IF(F144*(1-$I$18)<K119,F144,F144*(1-$I$18)),\"No Aplica\")","v":"No Aplica"}]
[null,null,"Plan Gold","COMPLETAS Sol ( S/ )",{"$f":"O129","v":"No Aplica"},{"$error":"#VALUE!"},{"$f":"IFERROR(IF(F145*(1-$I$18)<O119,F145,F145*(1-$I$18)),\"No Aplica\")","v":"No Aplica"}]
[]
[]
[null,null,"DESCUENTO",0]
[null,null,null,0.05]
[null,null,null,0.1]
[null,null,null,0.15]
[null,null,null,0.2]

{"sheet":"CasaMAR","index":1,"n_rows":130,"n_cols":33,"rows_kept":130,"cut":false,"hidden":false,"merged":[[5,7,5,9],[15,2,15,3],[15,4,15,5],[26,2,26,7],[48,2,48,7],[47,2,47,7],[44,2,44,7],[37,2,37,7],[38,2,38,7],[35,2,35,7],[43,2,43,7],[42,2,42,7],[41,2,41,7],[39,2,40,7],[33,2,33,7],[31,2,31,7],[23,10,24,14],[28,10,28,14],[39,10,39,14],[40,10,40,14],[23,9,24,9],[29,2,29,7],[28,2,28,7],[27,2,27,7],[11,2,12,5],[11,7,12,7],[11,6,12,6],[23,2,24,7],[1,2,1,14],[8,3,8,14],[23,8,24,8],[5,12,5,14],[3,3,3,14],[4,3,4,14],[10,2,10,14],[11,12,11,14],[11,11,12,11],[5,10,5,11],[7,5,7,6],[5,3,5,5],[13,2,13,5],[11,9,12,9],[6,5,6,6],[11,10,12,10],[90,2,90,14],[45,8,46,8],[64,2,64,14],[57,2,57,14],[65,2,65,14],[66,2,66,14],[68,2,68,14],[54,2,54,5],[55,2,55,5],[53,2,53,7],[52,2,52,7],[51,2,51,7],[50,2,50,7],[49,2,49,7],[46,2,46,7],[61,2,61,14],[151,2,151,3],[152,2,152,3],[148,2,148,3],[149,2,149,3],[92,2,92,3],[150,2,150,3],[34,2,34,7],[30,2,30,14],[39,8,40,8],[39,9,40,9],[36,2,36,7],[32,2,32,7],[6,3,6,4],[7,3,7,4],[6,7,6,14],[19,2,19,3],[21,2,21,3],[18,4,18,5],[18,2,18,3],[20,2,20,3],[17,4,17,5],[21,4,21,5],[20,4,20,5],[19,4,19,5]]}
[]
[null,null,"COTIZACIÓN DE SEGURO DOMICILIARIO CASAMARV8"]
[null,null,null,null,null,null,null,null,null,null,null,null,null,null,null,null,null,null,null,"SI","Dólares ( US$ )","US$","BASICAS",null,null,null,"Concreto Armado","Departamento"]
[null,null,"CONTRATANTE",null,null,null,null,null,null,null,null,null,null,null,null,null,null,null,null,"NO","Sol ( S/ )","S/","COMPLETAS",null,null,null,"Ladrillo y Cemento","Casa",null,"Debe asegurar edificio",null,"SA Edificio minimo ",200]
[null,null,"ASEGURADO",null,null,null,null,null,null,null,null,null,null,null,null,null,null,null,null,null,null,null,null,null,null,null,"Estructura de Acero",null,null,"La cotización excede el limite permitido"]
[null,null,"CORREDOR",null,null,null,"Oficina ",null,null,null,"Ejecutivo Comercial ",null,null,null,null,null,null,null,null,null,"Tipo de Cambio",{"$f":"CasaPLUS!V6","v":4.1500000000000004},null,null,null,null,"Madera y/o Adobe y/o quincha",null,null,"Debe asegurar contenido",null,"SA contenido minimo ",999]
[null,null,"ENDOSATARIO","NO",null,"Nombre del Endosatario",null,null,null,null,null,null,null,null,null,null,null,null,null,null,{"$f":"CasaPLUS!U10","v":"limite SA"},{"$f":"CasaPLUS!V10","v":1500000}]
[null,null,"MONEDA","Dólares ( US$ )",null,"Fecha de Cotización",null,{"$f":"TODAY()","v":"2021-09-30"},null,"Validez de la cotización ",null,"15 días ","Vigencia del seguro",null,"1 Año ",null,null,null,null,null,"monto minimo Cob robo",1599]
[null,null,"COBERTURAS SOLICITADAS","B. Programa Básico + Programa Full"]
[null,null,null,null,null,null,null,null,null,null,null,null,null,null,null,null,null,null,null,"https://exceltotal.com/ocultar-datos-en-excel-con-formato-condicional/"]
[null,null,"DATOS SBS"]
[null,null,"Ubicación del riesgo",null,null,null,"Tipo de Vivienda ","Tipo de Estructura",null,"Año de Construcción","Nro. de \nPisos","Nro. de Sótanos",{"$f":"CONCATENATE(\"Valores Declarados \",IF(D8=U3,V3,V4))","v":"Valores Declarados US$"},null,null,null,null,null,null,"http://www.compartir-tecnologias.es/ocultar-mostrar-filas-autoamticamente-pro-medio-formula-o-funcion-ayuda-204308052.html"]
[null,null,null,null,null,null,null,null,null,null,null,null,"Edificio","Contenido","Total",null,null,null,null,null,"pr"]
[null,null,null,null,null,null,"Departamento",null,null,null,null,null,200000,null,{"$f":"SUM(M14:N14)","v":200000}]
[null,null,null,{"$f":"+IF(D9=W3,1,0)","v":0}]
[null,null,"Seleccionar Coberturas",null,"BASICAS"]
[]
[null,null,null,null,{"$f":"IF(D8=U3,V3,V4)","v":"US$"}]
[null,null,"Prima Comercial Anual",null,{"$f":"VLOOKUP(C126,C127:D130,2,FALSE)","v":391.4},null,{"$f":"IF(M14<AG4,AD4,\" \")","v":" "}]
[null,null,"Prima Comercial + IGV Anual",null,{"$f":"IFERROR(E19*1.18,\"No Aplica\")","v":461.85199999999998},null,{"$f":"IF(AND(D8=U3,H121=\"SI\"),AD5,(IF(AND(D8=U4,J121=\"SI\"),AD5,\" \")))","v":" "}]
[null,null,"Descuento",null,0]
[null,null,"Prima Comercial + IGV Anual",null,{"$f":"IFERROR(IF(E20*(1-E21)<H116,H116,E20*(1-E21)),\"No Aplica\")","v":461.85199999999998}]
[]
[null,null,"Coberturas Principales",null,null,null,null,null,"Suma Asegurada Maxima ",{"$f":"CONCATENATE(\"Suma Asegurada \",IF(D8=U3,V3,V4))","v":"Suma Asegurada US$"},"Deducibles a cargo del asegurado"]
[null,null,null,null,null,null,null,null,null,null,null,null,null,null,null,null,null,null,"SA Dolares","SA Soles "]
[null,null,"I. PROGRAMA BASICO"]
[null,null,"Este seguro cubre la destrucción o daño físico directo de la vivienda y su contenido como consecuencia directa de",null,null,null,null,null,null,null,null,null,null,null,null,null,null,null,null,null,"prima comercial minima"]
[null,null,"Incendio y/o rayo, explosión, daños por agua, lluvia e inundación,  caída de aeronaves, impacto de vehículos terrestres, daños por humo.",null,null,null,null,null,"Hasta el 100% de la Suma Asegurada (SA) de la Vivienda\n+ Contenido",{"$f":"+O14","v":200000},{"$f":"Hoja1!B30","v":"10% del monto indemnizable mínimo US$ 500"},null,null,null,null,null,null,null,{"$f":"H115*1.18","v":123.89999999999999},{"$f":"J115*1.18","v":510.94000000000005},"prima comercial + IGV minima"]
[null,null,"Terremoto, temblor, erupción volcánica, maremoto (Tsunami), salida de mar, marejada, oleaje.",null,null,null,null,null,null,{"$f":"J28","v":200000},{"$f":"Hoja1!B31","v":"1% de la Suma Asegurada de la Vivienda + Contenido, minimo US$ 2000,lo que resulte mayor"}]
[null,null,"Huelga y conmoción civil, daño malicioso, vandalismo y/o terrorismo, limite agregado vigencia hasta:",null,null,null,null,null,null,{"$f":"J29","v":200000},{"$f":"Hoja1!B32","v":"5% del monto indemnizable mínimo US$ 500"}]
[null,null,"Coberturas Adicionales "]
[null,null,"Gastos Extras, hasta el 20% de la suma asegurada de la vivienda + contenido, máximo:",null,null,null,null,null,30000,{"$f":"IF($D$8=\"Dólares ( US$ )\",S32,T32)","v":20000},"El de la cobertura afectada",null,null,null,null,null,null,null,{"$f":"IF(O14*0.1<I32,O14*0.1,I32)","v":20000},{"$f":"IF(O14*0.1<I32*$V$6,O14*0.1,I32*$V$6)","v":20000}]
[null,null,"Gastos de remoción de escombros, hasta el 10% de la Suma Asegurada de la Vivienda + Contenido, máximo:",null,null,null,null,null,30000,{"$f":"IF($D$8=\"Dólares ( US$ )\",S33,T33)","v":20000},{"$f":"Hoja1!B37","v":"Sin deducible  "},null,null,null,null,null,null,null,{"$f":"IF(O14*0.1<I33,O14*0.1,I33)","v":20000},{"$f":"IF(O14*0.1<I33*$V$6,O14*0.1,I33*$V$6)","v":20000}]
[null,null,"Gastos de extinción y contención del siniestro, hasta el 10% de la Suma Asegurada de la Vivienda + Contenido, máximo:",null,null,null,null,null,30000,{"$f":"IF($D$8=\"Dólares ( US$ )\",S34,T34)","v":20000},{"$f":"Hoja1!B38","v":"Sin deducible  "},null,null,null,null,null,null,null,{"$f":"IF(O14*0.1<I34,O14*0.1,I34)","v":20000},{"$f":"IF(O14*0.1<I34*$V$6,O14*0.1,I34*$V$6)","v":20000}]
[null,null,"Rotura de vidrios, espejos y unidades sanitarias, hasta el 10% de la Suma Asegurada de la Vivienda, máximo:",null,null,null,null,null,15000,{"$f":"IF($D$8=\"Dólares ( US$ )\",S35,T35)","v":15000},{"$f":"Hoja1!B36","v":"10% del monto indemnizable, mínimo US$ 30"},null,null,null,null,null,null,null,{"$f":"IF(M14*0.1<I35,M14*0.1,I35)","v":15000},{"$f":"IF(M14*0.1<I35*$V$6,M14*0.1,I35*$V$6)","v":20000}]
[null,null,"Robo de Instalaciones fijas, hasta el 20% de la Suma Asegurada de la Vivienda máximo",null,null,null,null,null,10000,{"$f":"IF($D$8=\"Dólares ( US$ )\",S36,T36)","v":10000},{"$f":"Hoja1!B39","v":"15% del monto indemnizable, mínimo US$ 200"},null,null,null,null,null,null,null,{"$f":"IF(M14*0.2<I36,M14*0.2,I36)","v":10000},{"$f":"IF(M14*0.2<I36*$V$6,M14*0.2,I36*$V$6)","v":40000}]
[null,null,"Responsabilidad civil extracontractual frente a terceros limite en agregado vigencia, hasta:",null,null,null,null,null,100000,{"$f":"IF(J36=0,0,IF($D$8=\"Dólares ( US$ )\",S37,T37))","v":100000},{"$f":"Hoja1!B41","v":" US$ 200"},null,null,null,null,null,null,null,{"$f":"+I37","v":100000},{"$f":"+I37*V6","v":415000.00000000006}]
[null,null,"Gastos por emergencias médicas de terceros, hasta US$ 1,000 por persona, y en agregado vigencia máximo:",null,null,null,null,null,3000,{"$f":"IF(J36=0,0,IF($D$8=\"Dólares ( US$ )\",S38,T38))","v":3000},{"$f":"Hoja1!B42","v":"Sin deducible  "},null,null,null,null,null,null,null,{"$f":"+I38","v":3000},{"$f":"+I38*V6","v":12450.000000000002}]
[null,null,"Responsabilidad civil patronal (frente al trabajador del hogar), por evento y en el agregado vigencia hasta:",null,null,null,null,null,20000,{"$f":"IF(J36=0,0,IF($D$8=\"Dólares ( US$ )\",S39,T39))","v":20000},{"$f":"Hoja1!B43","v":"Sin deducible  "},null,null,null,null,null,null,null,{"$f":"+I39","v":20000},{"$f":"+I39*V6","v":83000}]
[null,null,"Robo de Bienes Contenidos en la Vivienda hasta ",null,null,null,null,null,"Hasta el 100% de la Suma Asegurada del Contenido",{"$f":"IF(OR(E16=W3,$N$14<V8),\"No Aplica\",N14)","v":"No Aplica"},{"$f":"IF(J40=\"No Aplica\", \"No Aplica\",Hoja1!B47)","v":"No Aplica"}]
[null,null,null,null,null,null,null,null,null,null,{"$f":"IF(J40=\"No Aplica\",\" \",Hoja1!B48)","v":" "}]
[null,null,"2.1.2 Contenidos Especiales (joyas, alhajas, perlas, platería, relojes personales, obras de arte, pieles, instrumentos musicales y colecciones en general) que se encuentren dentro de la vivienda y con un límite por bien de US$1,000. La Suma Asegurada está limitada al 30% de la suma asegurada del Contenido, máximo:",null,null,null,null,null,15000,{"$f":"IF($D$8=\"Dólares ( US$ )\",S42,T42)","v":0},"10% del Monto Indemnizable, mínimo",null,null,null,null,null,null,null,{"$f":"IF(N14*0.3<I42,N14*0.3,I42)","v":0},{"$f":"IF(N14*0.3<I42*$V$6,N14*0.3,I42*$V$6)","v":0}]
[null,null,"Robo de dinero en efectivo dentro de la vivienda, hasta US$ 1,000 por evento y en agregado vigencia máximo:",null,null,null,null,null,3000,{"$f":"IF($D$8=\"Dólares ( US$ )\",S43,T43)","v":"No Aplica"},{"$f":"IF(J43=\"No Aplica\",\"No Aplica\",Hoja1!B50)","v":"No Aplica"},null,null,null,null,null,null,null,{"$f":"IF(OR(E16=W3,$N$14<V8),\"No Aplica\",I43)","v":"No Aplica"},{"$f":"IF(OR(E16=W3,$N$14<V8),\"No Aplica\",I43*$V$6)","v":"No Aplica"}]
[null,null,"2.1.4 - Dinero en Tránsito solo por Asalto, maximo",null,null,null,null,null,2000,{"$f":"IF($D$8=\"Dólares ( US$ )\",S44,T44)","v":0},"Sin Deducible",null,null,null,null,null,null,null,{"$f":"IF(N14=0,0,I44)","v":0},{"$f":"IF(N14=0,0,I44*$V$6)","v":0}]
[null,null,"Daños internos de equipos electrónicos y equipos eléctricos, hasta el 10% de la suma asegurada del contenido, máximo:",null,null,null,null,null,5000,{"$f":"IF($D$8=\"Dólares ( US$ )\",S45,T45)","v":"No Aplica"},{"$f":"IF(J45=\"No Aplica\",\"No Aplica\",Hoja1!B53)","v":"No Aplica"},null,null,null,null,null,null,null,{"$f":"IF(OR(E16=W3,$N$14<V8),\"No Aplica\",IF(N14*0.1<I45,N14*0.1,I45))","v":"No Aplica"},{"$f":"IF(OR(E16=W3,$N$14<V8),\"No Aplica\",IF(N14*0.1<I45*$V$6,N14*0.1,I45*$V$6))","v":"No Aplica"}]
[null,null,null,null,null,null,null,null,5000]
[null,null,"Asistencia médica urgente por lesiones en un robo con un límite por persona de US$1,000 y en la vigencia hasta:",null,null,null,null,null,null,{"$f":"IF($D$8=\"Dólares ( US$ )\",S47,T47)","v":"No Aplica"},{"$f":"IF(J47=\"No Aplica\",\"No Aplica\",Hoja1!B54)","v":"No Aplica"},null,null,null,null,null,null,null,{"$f":"IF(OR(E16=W3,$N$14<V8),\"No Aplica\",I46)","v":"No Aplica"},{"$f":"IF(OR(E16=W3,$N$14<V8),\"No Aplica\",I46*$V$6)","v":"No Aplica"}]
[null,null,"Alojamiento temporal por inhabilitación de la vivienda, con un límite mensual de  US$ 1,000 y en la vigencia hasta: ",null,null,null,null,null,3000,{"$f":"IF(J36=0,0,IF($D$8=\"Dólares ( US$ )\",S48,T48))","v":"No Aplica"},{"$f":"IF(J48=\"No Aplica\",\"No Aplica\",Hoja1!B56)","v":"No Aplica"},null,null,null,null,null,null,null,{"$f":"IF(OR(E16=W3,$N$14<V8),\"No Aplica\",I48)","v":"No Aplica"},{"$f":"IF(OR(E16=W3,$N$14<V8),\"No Aplica\",I48*$V$6)","v":"No Aplica"}]
[null,null,"Daños durante el traslado del contenido asegurado al alojamiento temporal, hasta el 50% de la suma asegurada del contenido, máximo:",null,null,null,null,null,7500,{"$f":"IF($D$8=\"Dólares ( US$ )\",S49,T49)","v":"No Aplica"},{"$f":"IF(J49=\"No Aplica\",\"No Aplica\",Hoja1!B57)","v":"No Aplica"},null,null,null,null,null,null,null,{"$f":"IF(OR(E16=W3,$N$14<V8),\"No Aplica\",IF(N14*0.5<I49,N14*0.5,I49))","v":"No Aplica"},{"$f":"IF(OR(E16=W3,$N$14<V8),\"No Aplica\",IF(N14*0.5<I49*$V$6,N14*0.5,I49*$V$6))","v":"No Aplica"}]
[null,null,"Perdida de alimentos en equipos de refrigeración, hasta el 5% de la suma asegurada del contenido, máximo:",null,null,null,null,null,1500,"No Aplica",{"$f":"IF(J50=\"No Aplica\",\"No Aplica\",Hoja1!B58)","v":"No Aplica"},null,null,null,null,null,null,null,{"$f":"IF(OR(E16=W3,$N$14<V8),\"No Aplica\",IF(N14*0.05<I50,N14*0.05,I50))","v":"No Aplica"},{"$f":"IF(OR(E16=W3,$N$14<V8),\"No Aplica\",IF(N14*0.05<I50*$V$6,N14*0.05,I50*$V$6))","v":"No Aplica"}]
[null,null,"2.2.6 Pérdida de equipaje y/o de los bienes portados por el Asegurado y/o cónyuge y/o hijos en caso de viaje dentro o fuera del país, hasta el 10% de la Suma Asegurada del Contenido, máximo:",null,null,null,null,null,5000,0,"Sin Deducible",null,null,null,null,null,null,null,{"$f":"IF(N14*0.1<I51,N14*0.1,I51)","v":0},{"$f":"IF(N14*0.1<I51*$V$6,N14*0.1,I51*$V$6)","v":0}]
[null,null,"Deshonestidad o apropiación ilícita de trabajadores del hogar, limite en agregado vigencia hasta:",null,null,null,null,null,1500,"No Aplica",{"$f":"IF(J52=\"No Aplica\",\"No Aplica\",Hoja1!B60)","v":"No Aplica"},null,null,null,null,null,null,null,{"$f":"IF(OR(E16=W3,$N$14<V8),\"No Aplica\",I52)","v":"No Aplica"},{"$f":"IF(OR(E16=W3,$N$14<V8),\"No Aplica\",(I52*$V$6))","v":"No Aplica"}]
[null,null,"Compensación por muerte accidental del Asegurado o de su cónyuge o conviviente ",null,null,null,null,null,10000,"No Aplica",{"$f":"IF(J53=\"No Aplica\",\"No Aplica\",Hoja1!B62)","v":"No Aplica"},null,null,null,null,null,null,null,{"$f":"IF(OR(E16=W3,$N$14<V8),\"No Aplica\",I53)","v":"No Aplica"},{"$f":"IF(OR(E16=W3,$N$14<V8),\"No Aplica\",(I53*$V$6))","v":"No Aplica"}]
[null,null,"Gastos de curación de empleados (trabajadores del hogar), hasta US$ 1,000 por evento, maximo:",null,null,null,null,null,3000,"No Aplica",{"$f":"IF(J54=\"No Aplica\",\"No Aplica\",Hoja1!B63)","v":"No Aplica"},null,null,null,null,null,null,null,{"$f":"IF(OR(E16=W3,$N$14<V8),\"No Aplica\",I54)","v":"No Aplica"},{"$f":"IF(OR(E16=W3,$N$14<V8),\"No Aplica\",(I54*$V$6))","v":"No Aplica"}]
[null,null,"2.3.3 Gastos de Sepelio del Asegurado y/o conyuge y/o hijos",null,null,null,null,3000,{"$f":"IF($D$8=\"Dólares ( US$ )\",S55,T55)","v":0},"Sin Deducible",null,null,null,null,null,null,null,null,{"$f":"IF(N14=0,0,H55)","v":0},{"$f":"IF(N14=0,0,(H55*$V$6))","v":0}]
[null,null,"2.3.4 Gastos de Sepelio por muerte del trabajador del hogar",null,null,null,null,3000,{"$f":"IF($D$8=\"Dólares ( US$ )\",S56,T56)","v":0},"Sin Deducible",null,null,null,null,null,null,null,null,{"$f":"IF(N14=0,0,H56)","v":0},{"$f":"IF(N14=0,0,(H56*$V$6))","v":0}]
[]
[null,null,"Claúsulas"]
[null,null,"Póliza de Seguro Domiciliario ",null,"014 CL Gastos eme. Méd. Ter. ",null,null,"015 CL RC patronal",null,null,"027 CL Gastos Extras",null,"035 CL Robo de instalaciones fijas "]
[null,null,"004 CL Muerte acc. Ase. Cony. o Conv. ",null,"005 CL Gastos curacion empleados",null,null,"006 CL Daños int. eq. ",null,null,"009 CL Dinero dentro de la vivienda ",null,"010 CL Asistencia médica urgente"]
[null,null,"011 CL Aloj. Temp. Inha. Viv. ",null,"012 CL Daños durante traslado contenido",null,null,"013 CL Pérdida de alimentos ",null,null,"017 CL Deshonestidad trab. hogar"]
[null,null,"Condiciones Especiales "]
[null,null,"Las Sumas Aseguradas son límites únicos para la vigencia del seguro y se encuentran sujetas a los limites por evento y agregado vigencia indicados en cada cobertura."]
[null,null,{"$f":"IF(G14=AB3,\" - CE Valor Comercial\",\" \")","v":" - CE Valor Comercial"}]
[null,null,{"$f":"IF(D7=T3,\"Rehabilitacion Automática de la Suma Asegurada (excepto para coberturas con suma asegurada en agregado vigencia); Propiedades fuera de control del asegurado; Reposición; Errores y omisiones\",\" \")","v":" "}]
[null,null,"Recomendaciones "]
[null,null," - Tener instalados interruptores de tipo termomagnético o de tipo diferencial. No usar llaves de cuchilla ni conductores mellizos.\n - Mantener el cableado eléctrico entubado o empotrado, no debe existir presencia de cables sueltos.\n - Contar con un (01) extintor de PQS de 2 kgs o más de capacidad."]
[]
[null,null,"Beneficios "]
[null,null,"Linea Positiva Salud"]
[null,null," - Consejería médica gratuita vía telefónica "]
[null,null,"Asistencias Domiciliarias "]
[]
[null,null,"Asistencia",null,null,"Copago","Sublimite *","Eventos "]
[null,null,"Cerrajeria ",null,null,"-",450,"3 eventos"]
[null,null,"Gasfiteria",null,null,"-",850,"3 eventos"]
[null,null,"Electricidad",null,null,"-",850,"2 eventos"]
[null,null,"Vidrieria ",null,null,"-",850,"2 eventos"]
[null,null,"Housekeeping",null,null,30,350,"2 eventos"]
[null,null,"Ambulancia por emergencia médica o accidental",null,null,"-",1500,"3 eventos"]
[null,null,"Consulta médica a domicilio",null,null,20,400,"3 eventos"]
[null,null,"Consulta médica por teléfono",null,null,"-","Sin límite"]
[null,null,"Consulta médica para trabajadoras de hogar",null,null,30,400,"3 eventos"]
[null,null,"Mensajería en recojo y paquetes (hasta 5 kilos)",null,null,"-",600,"2 eventos"]
[null,null,"Valet Parking",null,null,"-","Sin límite","2 eventos"]
[null,null,"Mozo a domicilio",null,null,"-","1 mozo","2 eventos"]
[null,null,"Orientación Veterinaria Telefónica",null,null,"-","Sin límite","-"]
[null,null,"Asesoría Legal",null,null,"-","Sin límite","-"]
[null,null,"Servicios de referencia y coordinación",null,null,"-","Sin límite","-"]
[null,null,"Mantenimiento de Preventivo de Línea Blanca",null,null,"-",250,"2 eventos"]
[null,null,{"$f":"CasaPLUS!C101","v":"* El Sublimite señalado por cada asistencia corresponde al importe máximo del servicio brindado dentro de la vigencia de la póliza.\nLas asistencias están disponibles en algunas ciudades, sujetos al tipo de servicio requerido y al radio de acción. Se aplican restricciones por zona y horario. "}]
[]
[]
[]
[null,null,"Exclusiones "]
[null,null," - Viviendas en cuyo interior se efectúen labores comerciales, industriales o de servicios"]
[null,null," - Viviendas ubicadas a una distancia menor a 100 metros del mar "]
[null,null," - Viviendas, casas y departamentos cuyo material de construcción predomínate NO sea ladrillo, cemento y fierro "]
[null,null," - Viviendas ubicadas en asentamientos informales o asentamientos humanos o en lotes no urbanizados o en lotes rurales o en condición de infravivienda"]
[]
[null,null,"Importante"]
[null,null," - El Asegurado deberá completar y firmar la Solicitud de Seguro"]
[]
[null,null,null,null,null,null,null,"Dolares",null,"Soles"]
[null,null,"TASA NETA ANUAL COBERTURA PRINCIPAL (aplicado al VD de Vivienda + Contenido asegurada)",null,null,null,1.9]
[null,null,"TASA NETA ANUAL COB ADICIONALES (Aplicado al VD del contenido Asegurado",null,null,null,8]
[null,null,"PRIMA NETA COBERTURA BASICA ",null,null,null,null,{"$f":"G105*O14/1000","v":380},null,{"$f":"G105*O14/1000","v":380}]
[null,null,"PRIMA NETA CONTENIDO",null,null,null,null,{"$f":"N14*G106/1000","v":0},null,{"$f":"N14*G106/1000","v":0}]
[null,null,"PRIMA NETA COBERTURA COMPLETA ",null,null,null,null,{"$f":"SUM(H107:H108)","v":380},null,{"$f":"SUM(J107:J108)","v":380}]
[null,null,"DERECHO DE EMISION COBERTURA BASICA %",null,null,null,null,{"$f":"H107*G111","v":11.4},null,{"$f":"J107*G111","v":11.4}]
[null,null,"DERECHO DE EMISION COBERTURA COMPLETA %",null,null,null,0.03,{"$f":"H109*G111","v":11.4},null,{"$f":"J109*G111","v":11.4}]
[null,null,"DERECHO DE EMISION MINIMO ",null,null,null,null,5,null,18]
[null,null,"PRIMA COMERCIAL APLICADA COBERTURA BASICA ",null,null,null,null,{"$f":"IF(H110>H112,H107+H110,H107+H112)","v":391.4},null,{"$f":"IF(J110>J112,J107+J110,J107+J112)","v":398}]
[null,null,"PRIMA COMERCIAL APLICADA COBERTURA COMPLETA",null,null,null,null,{"$f":"IF(H111>H112,H109+H111,H109+H112)","v":391.4},null,{"$f":"IF(J111>J112,J109+J111,J109+J112)","v":398}]
[null,null,"PRIMA COMERCIAL MINIMA CASAMAR",null,null,null,null,{"$f":"100+H112","v":105},null,{"$f":"(100*V6)+J112","v":433.00000000000006}]
[null,null,"PRIMA COMERCIAL + IGV MINIMA CASAMAR ",null,null,null,null,{"$f":"H115*1.18","v":123.89999999999999},null,{"$f":"J115*1.18","v":510.94000000000005}]
[null,null,"VALIDACION PC MINIMA COBERTURA BASICA",null,null,null,null,{"$f":"IF(H113<H115,H115,H113)","v":391.4},null,{"$f":"IF(J113<J115,J115,J113)","v":433.00000000000006}]
[null,null,"VALIDACION PC MINIMA COBERTURA COMPLETA",null,null,null,null,{"$f":"IF(H114<H115,H115,H114)","v":391.4},null,{"$f":"IF(J114<J115,J115,J114)","v":433.00000000000006}]
[null,null,"¿ASEGURA EDIFICIO?",null,null,null,null,{"$f":"IF(M14<AG4,\"NO\",\"SI\")","v":"SI"},null,{"$f":"H119","v":"SI"}]
[null,null,"¿CONTENIDO EXCEDE MINIMO REQUERIDO?",null,null,null,null,{"$f":"IF(N14>V8,\"SI\",\"NO\")","v":"NO"},null,{"$f":"IF(N14>V8*V6,\"SI\",\"NO\")","v":"NO"}]
[null,null,"¿EXCEDE LIMITE ASEGURADO?",null,null,null,null,{"$f":"IF(O14>V7,\"SI\",\"NO\")","v":"NO"},null,{"$f":"IF(O14>V7*V6,\"SI\",\"NO\")","v":"NO"}]
[null,null,"PRIMA COMERCIAL VALIDADA COBERTURA BASICA",null,null,null,null,{"$f":"IF(OR(H119=\"NO\",H121=\"SI\"),\"No aplica\",H117)","v":391.4},null,{"$f":"IF(OR(J119=\"NO\",J121=\"SI\"),\"No aplica\",J117)","v":433.00000000000006}]
[null,null,"PRIMA COMERCIAL VALIDADA COBERTURA COMPLETA",null,null,null,null,{"$f":"IF(OR(H119=\"NO\",H120=\"NO\",H121=\"SI\"),\"No aplica\",IF(H114>H115,H114,H115))","v":"No aplica"},null,{"$f":"IF(OR(J119=\"NO\",J120=\"NO\",J121=\"SI\"),\"No aplica\",IF(J114>J115,J114,J115))","v":"No aplica"}]
[]
[null,null,null,"PRIMA COMERCIAL "]
[null,null,{"$f":"CONCATENATE(E16,D8)","v":"BASICASDólares ( US$ )"}]
[null,null,{"$f":"CONCATENATE(W3,U3)","v":"BASICASDólares ( US$ )"},{"$f":"H122","v":391.4}]
[null,null,{"$f":"CONCATENATE(W3,U4)","v":"BASICASSol ( S/ )"},{"$f":"J122","v":433.00000000000006}]
[null,null,{"$f":"CONCATENATE(W4,U3)","v":"COMPLETASDólares ( US$ )"},{"$f":"H123","v":"No aplica"}]
[null,null,{"$f":"CONCATENATE(W4,U4)","v":"COMPLETASSol ( S/ )"},{"$f":"J123","v":"No aplica"}]

{"sheet":"Hoja1","index":2,"n_rows":65,"n_cols":8,"rows_kept":65,"cut":false,"hidden":true,"merged":[]}
[]
[]
["DEDUCIBLES CP",null,null,"Moneda","Minimo "]
[{"$f":"CasaPLUS!C33","v":"Incendio y/o rayo, explosión, daños por agua, lluvia e inundación,  caída de aeronaves, impacto de vehículos terrestres, daños por humo."},{"$f":"CONCATENATE(Hoja1!C4,\" \",Hoja1!D4,\" \",Hoja1!E4, ,Hoja1!F4)","v":"10% del monto indemnizable mínimo US$ 200"},"10% del monto indemnizable mínimo",{"$f":"IF(CasaPLUS!D8=CasaPLUS!U3,CasaPLUS!V3,CasaPLUS!V4)","v":"US$"},{"$f":"IF(D4=CasaPLUS!V3,Hoja1!H4,Hoja1!H4*CasaPLUS!V6)","v":200},null,null,200]
[{"$f":"CasaPLUS!C34","v":"Terremoto, temblor, erupción volcánica, maremoto (Tsunami), salida de mar, marejada, oleaje."},{"$f":"CONCATENATE(Hoja1!C5,\" \",Hoja1!D5,\" \",Hoja1!E5, ,Hoja1!F5)","v":"1% de la Suma Asegurada de la Vivienda + Contenido, minimo US$ 500, lo que resulte mayor."},"1% de la Suma Asegurada de la Vivienda + Contenido, minimo",{"$f":"D4","v":"US$"},{"$f":"IF(D5=CasaPLUS!V3,Hoja1!H5,Hoja1!H5*CasaPLUS!V6)","v":500},", lo que resulte mayor.",null,500]
[{"$f":"CasaPLUS!C35","v":"Huelga y conmoción civil, daño malicioso, vandalismo y/o terrorismo, limite agregado vigencia hasta."},{"$f":"CONCATENATE(Hoja1!C6,\" \",Hoja1!D6,\" \",Hoja1!E6, ,Hoja1!F6)","v":"5% del monto indemnizable mínimo US$ 200"},"5% del monto indemnizable mínimo",{"$f":"D4","v":"US$"},{"$f":"IF(D6=CasaPLUS!V3,Hoja1!H6,Hoja1!H6*CasaPLUS!V6)","v":200},null,null,200]
[{"$f":"CasaPLUS!C43","v":"Rotura de vidrios, espejos y unidades sanitarias, hasta el 20% de la Suma Asegurada de la Vivienda, máximo: "},{"$f":"CONCATENATE(Hoja1!C7,\" \",Hoja1!D7,\" \",Hoja1!E7, ,Hoja1!F7)","v":"10% del monto indemnizable, mínimo US$ 30"},"10% del monto indemnizable, mínimo",{"$f":"D4","v":"US$"},{"$f":"ROUND(IF(D7=CasaPLUS!V3,Hoja1!H7,Hoja1!H7*CasaPLUS!V6),0)","v":30},null,null,30]
[{"$f":"CasaPLUS!C44","v":"Robo de instalaciones fijas, hasta el 20% de la Suma Asegurada de la Vivienda, máximo:"},{"$f":"CONCATENATE(Hoja1!C8,\" \",Hoja1!D8,\" \",Hoja1!E8, ,Hoja1!F8)","v":"15% del monto indemnizable, mínimo US$ 200"},"15% del monto indemnizable, mínimo",{"$f":"D4","v":"US$"},{"$f":"IF(D8=CasaPLUS!V3,Hoja1!H8,Hoja1!H8*CasaPLUS!V6)","v":200},null,null,200]
[{"$f":"CasaPLUS!C45","v":"Responsabilidad civil extracontractual Frente a Terceros, por evento y en agregado vigencia hasta:"},{"$f":"CONCATENATE(Hoja1!C9,\" \",Hoja1!D9,\" \",Hoja1!E9, ,Hoja1!F9)","v":" US$ 200"},null,{"$f":"D6","v":"US$"},{"$f":"IF(D9=CasaPLUS!V3,Hoja1!H9,Hoja1!H9*CasaPLUS!V6)","v":200},null,null,200]
[{"$f":"CasaPLUS!C50","v":"Robo de Bienes Contenidos en la Vivienda hasta:"},{"$f":"CONCATENATE(Hoja1!C10,\" \",Hoja1!D10,\" \",Hoja1!E10, ,Hoja1!F10)","v":"15% del monto indemnizable, mínimo US$ 500"},"15% del monto indemnizable, mínimo",{"$f":"D5","v":"US$"},{"$f":"IF(D10=CasaPLUS!V3,Hoja1!H10,Hoja1!H10*CasaPLUS!V6)","v":500},null,null,500]
[{"$f":"CasaPLUS!C51","v":"Robo de Contenidos Especiales (joyas, alhajas, perlas, platería, relojes personales, obras de arte, pieles, instrumentos musicales y colecciones en general) dentro o fuera de los predios, con un límite por bien de US$1,000. La Suma Asegurada está limitada al 30% de la suma asegurada del Contenido, hasta: "},{"$f":"CONCATENATE(Hoja1!C11,\" \",Hoja1!D11,\" \",Hoja1!E11, ,Hoja1!F11)","v":"15% del monto indemnizable, mínimo US$ 300"},"15% del monto indemnizable, mínimo",{"$f":"D7","v":"US$"},{"$f":"IF(D11=CasaPLUS!V3,Hoja1!H11,Hoja1!H11*CasaPLUS!V6)","v":300},null,null,300]
[{"$f":"CasaPLUS!C52","v":"Robo de dinero en Efectivo dentro de la Vivienda, hasta:"},{"$f":"CONCATENATE(Hoja1!C12,\" \",Hoja1!D12,\" \",Hoja1!E12, ,Hoja1!F12)","v":" US$ 50"},null,{"$f":"D8","v":"US$"},{"$f":"ROUND(IF(D12=CasaPLUS!V3,Hoja1!H12,Hoja1!H12*CasaPLUS!V6),0)","v":50},null,null,50]
[{"$f":"CasaPLUS!C53","v":"Robo de dinero en tránsito solo por asalto, hasta:"},{"$f":"CONCATENATE(Hoja1!C13,\" \",Hoja1!D13,\" \",Hoja1!E13, ,Hoja1!F13)","v":" US$ 50"},null,"US$",{"$f":"ROUND(IF(D13=CasaPLUS!V3,Hoja1!H13,Hoja1!H13*CasaPLUS!V6),0)","v":50},null,null,50]
[{"$f":"CasaPLUS!C54","v":"Daños internos de equipos electrónicos y equipos eléctricos, hasta el 10% de la Suma Asegurada del Contenido, máximo:"},{"$f":"CONCATENATE(Hoja1!C14,\" \",Hoja1!D14,\" \",Hoja1!E14, ,Hoja1!F14)","v":"10% del monto indemnizable, mínimo US$ 50"},"10% del monto indemnizable, mínimo","US$",{"$f":"ROUND(IF(D14=CasaPLUS!V3,Hoja1!H14,Hoja1!H14*CasaPLUS!V6),0)","v":50},null,null,50]
[{"$f":"CasaPLUS!C55","v":"Asistencia médica urgente por lesiones en un robo con un límite por persona de US$1,000 y en agregado vigencia máximo:"},{"$f":"CONCATENATE(Hoja1!C15,\" \",Hoja1!D15,\" \",Hoja1!E15, ,Hoja1!F15)","v":"Sin deducible  "},"Sin deducible"]
[]
[{"$f":"CasaPLUS!C56","v":"Alojamiento temporal por inhabilitación de la vivienda, con un límite mensual de US$ 1,000 y en agregado vigencia máximo: "},{"$f":"CONCATENATE(Hoja1!C17,\" \",Hoja1!D17,\" \",Hoja1!E17, ,Hoja1!F17)","v":"Sin deducible  "},"Sin deducible"]
[{"$f":"CasaPLUS!C57","v":"Daños durante el traslado del contenido asegurado al alojamiento temporal, hasta el  50% de la Suma Asegurada del Contenido, máximo:"},{"$f":"CONCATENATE(Hoja1!C18,\" \",Hoja1!D18,\" \",Hoja1!E18, ,Hoja1!F18)","v":"10% del monto indemnizable, mínimo US$ 50"},"10% del monto indemnizable, mínimo",{"$f":"D4","v":"US$"},{"$f":"ROUND(IF(D18=CasaPLUS!V3,Hoja1!H18,Hoja1!H18*CasaPLUS!V6),0)","v":50},null,null,50]
[{"$f":"CasaPLUS!C58","v":"Perdida de alimentos en equipos de refrigeración, hasta el 5% de la Suma Asegurada del Contenido, máximo:"},{"$f":"CONCATENATE(Hoja1!C19,\" \",Hoja1!D19,\" \",Hoja1!E19, ,Hoja1!F19)","v":"10% del monto indemnizable, mínimo US$ 50"},"10% del monto indemnizable, mínimo",{"$f":"D4","v":"US$"},{"$f":"ROUND(IF(D19=CasaPLUS!V3,Hoja1!H19,Hoja1!H19*CasaPLUS!V6),0)","v":50},null,null,50]
[{"$f":"CasaPLUS!C59","v":"Pérdida de equipaje por viaje dentro o fuera del país, hasta el 10% de la Suma Asegurada del Contenido, máximo:"},{"$f":"CONCATENATE(Hoja1!C20,\" \",Hoja1!D20,\" \",Hoja1!E20, ,Hoja1!F20)","v":"10% del monto indemnizable, mínimo US$ 50"},"10% del monto indemnizable, mínimo",{"$f":"D4","v":"US$"},{"$f":"ROUND(IF(D20=CasaPLUS!V3,Hoja1!H20,Hoja1!H20*CasaPLUS!V6),0)","v":50},null,null,50]
[{"$f":"CasaPLUS!C60","v":"Deshonestidad o apropiación ilícita de trabajadores del hogar, por evento y en agregado vigencia hasta:"},{"$f":"CONCATENATE(Hoja1!C21,\" \",Hoja1!D21,\" \",Hoja1!E21, ,Hoja1!F21)","v":"10% del monto indemnizable, mínimo US$ 200"},"10% del monto indemnizable, mínimo",{"$f":"D4","v":"US$"},{"$f":"IF(D21=CasaPLUS!V3,Hoja1!H21,Hoja1!H21*CasaPLUS!V6)","v":200},null,null,200]
[{"$f":"CasaPLUS!C61","v":"Compensación por Muerte accidental del Asegurado o de su cónyuge o conviviente "},{"$f":"CONCATENATE(Hoja1!C22,\" \",Hoja1!D22,\" \",Hoja1!E22, ,Hoja1!F22)","v":"Sin deducible  "},"Sin deducible"]
[{"$f":"CasaPLUS!C62","v":"Gastos de Curación de empleados (Trabajadores del hogar), hasta  US$ 1,000 por evento, y en agregado vigencia hasta:"},{"$f":"CONCATENATE(Hoja1!C23,\" \",Hoja1!D23,\" \",Hoja1!E23, ,Hoja1!F23)","v":"Sin deducible  "},"Sin deducible"]
[{"$f":"CasaPLUS!C63","v":"Gastos de sepelio para el asegurado o su cónyuge o hijos, hasta"},{"$f":"CONCATENATE(Hoja1!C24,\" \",Hoja1!D24,\" \",Hoja1!E24, ,Hoja1!F24)","v":"Sin deducible  "},"Sin deducible"]
[{"$f":"CasaPLUS!C64","v":"Gastos de sepelio para el trabajador del hogar, hasta"},{"$f":"CONCATENATE(Hoja1!C25,\" \",Hoja1!D25,\" \",Hoja1!E25, ,Hoja1!F25)","v":"Sin deducible  "},"Sin deducible"]
[]
[]
[]
["DEDUCIBLES CM",null,null,"Moneda","Minimo "]
[{"$f":"+CasaMAR!C28","v":"Incendio y/o rayo, explosión, daños por agua, lluvia e inundación,  caída de aeronaves, impacto de vehículos terrestres, daños por humo."},{"$f":"CONCATENATE(Hoja1!C30,\" \",Hoja1!D30,\" \",Hoja1!E30, ,Hoja1!F30)","v":"10% del monto indemnizable mínimo US$ 500"},"10% del monto indemnizable mínimo",{"$f":"IF(CasaMAR!D8=CasaMAR!U3,CasaMAR!V3,CasaMAR!V4)","v":"US$"},{"$f":"IF(CasaMAR!$D$8=CasaMAR!$U$3,Hoja1!H30,Hoja1!H30*CasaMAR!$V$6)","v":500},null,null,500]
[{"$f":"+CasaMAR!C29","v":"Terremoto, temblor, erupción volcánica, maremoto (Tsunami), salida de mar, marejada, oleaje."},{"$f":"CONCATENATE(Hoja1!C31,\" \",Hoja1!D31,\" \",Hoja1!E31, ,Hoja1!F31)","v":"1% de la Suma Asegurada de la Vivienda + Contenido, minimo US$ 2000,lo que resulte mayor"},"1% de la Suma Asegurada de la Vivienda + Contenido, minimo",{"$f":"$D$30","v":"US$"},{"$f":"IF(CasaMAR!$D$8=CasaMAR!$U$3,Hoja1!H31,Hoja1!H31*CasaMAR!$V$6)","v":2000},",lo que resulte mayor",null,2000]
[{"$f":"+CasaMAR!C30","v":"Huelga y conmoción civil, daño malicioso, vandalismo y/o terrorismo, limite agregado vigencia hasta:"},{"$f":"CONCATENATE(Hoja1!C32,\" \",Hoja1!D32,\" \",Hoja1!E32, ,Hoja1!F32)","v":"5% del monto indemnizable mínimo US$ 500"},"5% del monto indemnizable mínimo",{"$f":"$D$30","v":"US$"},{"$f":"IF(CasaMAR!$D$8=CasaMAR!$U$3,Hoja1!H32,Hoja1!H32*CasaMAR!$V$6)","v":500},null,null,500]
[]
[]
[]
[{"$f":"+CasaMAR!C35","v":"Rotura de vidrios, espejos y unidades sanitarias, hasta el 10% de la Suma Asegurada de la Vivienda, máximo:"},{"$f":"CONCATENATE(Hoja1!C36,\" \",Hoja1!D36,\" \",Hoja1!E36, ,Hoja1!F36)","v":"10% del monto indemnizable, mínimo US$ 30"},"10% del monto indemnizable, mínimo",{"$f":"$D$30","v":"US$"},{"$f":"ROUND(IF(CasaMAR!$D$8=CasaMAR!$U$3,Hoja1!H36,Hoja1!H36*CasaMAR!$V$6),0)","v":30},null,null,30]
[{"$f":"+CasaMAR!C33","v":"Gastos de remoción de escombros, hasta el 10% de la Suma Asegurada de la Vivienda + Contenido, máximo:"},{"$f":"CONCATENATE(Hoja1!C37,\" \",Hoja1!D37,\" \",Hoja1!E37, ,Hoja1!F37)","v":"Sin deducible  "},"Sin deducible"]
[{"$f":"+CasaMAR!C34","v":"Gastos de extinción y contención del siniestro, hasta el 10% de la Suma Asegurada de la Vivienda + Contenido, máximo:"},{"$f":"CONCATENATE(Hoja1!C38,\" \",Hoja1!D38,\" \",Hoja1!E38, ,Hoja1!F38)","v":"Sin deducible  "},"Sin deducible"]
[{"$f":"+CasaMAR!C36","v":"Robo de Instalaciones fijas, hasta el 20% de la Suma Asegurada de la Vivienda máximo"},{"$f":"CONCATENATE(Hoja1!C39,\" \",Hoja1!D39,\" \",Hoja1!E39, ,Hoja1!F39)","v":"15% del monto indemnizable, mínimo US$ 200"},"15% del monto indemnizable, mínimo",{"$f":"D30","v":"US$"},{"$f":"IF(CasaMAR!$D$8=CasaMAR!$U$3,Hoja1!H39,Hoja1!H39*CasaMAR!$V$6)","v":200},null,null,200]
[{"$f":"+CasaMAR!#REF!","v":{"$error":"#REF!"}},{"$f":"CONCATENATE(Hoja1!C40,\" \",Hoja1!D40,\" \",Hoja1!E40, ,Hoja1!F40)","v":"  "}]
[{"$f":"+CasaMAR!C37","v":"Responsabilidad civil extracontractual frente a terceros limite en agregado vigencia, hasta:"},{"$f":"CONCATENATE(Hoja1!C41,\" \",Hoja1!D41,\" \",Hoja1!E41, ,Hoja1!F41)","v":" US$ 200"},null,{"$f":"$D$30","v":"US$"},{"$f":"IF(CasaMAR!$D$8=CasaMAR!$U$3,Hoja1!H41,Hoja1!H41*CasaMAR!$V$6)","v":200},null,null,200]
[{"$f":"+CasaMAR!C38","v":"Gastos por emergencias médicas de terceros, hasta US$ 1,000 por persona, y en agregado vigencia máximo:"},{"$f":"CONCATENATE(Hoja1!C42,\" \",Hoja1!D42,\" \",Hoja1!E42, ,Hoja1!F42)","v":"Sin deducible  "},"Sin deducible"]
[{"$f":"+CasaMAR!C39","v":"Responsabilidad civil patronal (frente al trabajador del hogar), por evento y en el agregado vigencia hasta:"},{"$f":"CONCATENATE(Hoja1!C43,\" \",Hoja1!D43,\" \",Hoja1!E43, ,Hoja1!F43)","v":"Sin deducible  "},"Sin deducible"]
[{"$f":"+CasaMAR!#REF!","v":{"$error":"#REF!"}},{"$f":"CONCATENATE(Hoja1!C44,\" \",Hoja1!D44,\" \",Hoja1!E44, ,Hoja1!F44)","v":"  "}]
[{"$f":"+CasaMAR!#REF!","v":{"$error":"#REF!"}},{"$f":"CONCATENATE(Hoja1!C45,\" \",Hoja1!D45,\" \",Hoja1!E45, ,Hoja1!F45)","v":"  "}]
[{"$f":"+CasaMAR!#REF!","v":{"$error":"#REF!"}},{"$f":"CONCATENATE(Hoja1!C46,\" \",Hoja1!D46,\" \",Hoja1!E46, ,Hoja1!F46)","v":"  "}]
[{"$f":"+CasaMAR!C40","v":"Robo de Bienes Contenidos en la Vivienda hasta "},{"$f":"CONCATENATE(Hoja1!C47,\" \",Hoja1!D47,\" \",Hoja1!E47, ,Hoja1!F47)","v":"Eventos ocurridos entre diciembre y abril: 10% del monto indemnizable, mínimo  US$ 500"},"Eventos ocurridos entre diciembre y abril: 10% del monto indemnizable, mínimo ",{"$f":"$D$30","v":"US$"},{"$f":"IF(CasaMAR!$D$8=CasaMAR!$U$3,Hoja1!H47,Hoja1!H47*CasaMAR!$V$6)","v":500},null,null,500]
[{"$f":"+CasaMAR!C41","v":0},{"$f":"CONCATENATE(Hoja1!C48,\" \",Hoja1!D48,\" \",Hoja1!E48, ,Hoja1!F48)","v":"Eventos ocurridos entre mayo y noviembre: 10% del monto indemnizable, mínimo  US$ 2500"},"Eventos ocurridos entre mayo y noviembre: 10% del monto indemnizable, mínimo ",{"$f":"$D$30","v":"US$"},{"$f":"IF(CasaMAR!$D$8=CasaMAR!$U$3,Hoja1!H48,Hoja1!H48*CasaMAR!$V$6)","v":2500},null,null,2500]
[{"$f":"+CasaMAR!C42","v":"2.1.2 Contenidos Especiales (joyas, alhajas, perlas, platería, relojes personales, obras de arte, pieles, instrumentos musicales y colecciones en general) que se encuentren dentro de la vivienda y con un límite por bien de US$1,000. La Suma Asegurada está limitada al 30% de la suma asegurada del Contenido, máximo:"},{"$f":"CONCATENATE(Hoja1!C49,\" \",Hoja1!D49,\" \",Hoja1!E49, ,Hoja1!F49)","v":"  "}]
[{"$f":"+CasaMAR!C43","v":"Robo de dinero en efectivo dentro de la vivienda, hasta US$ 1,000 por evento y en agregado vigencia máximo:"},{"$f":"CONCATENATE(Hoja1!C50,\" \",Hoja1!D50,\" \",Hoja1!E50, ,Hoja1!F50)","v":" US$ 50"},null,{"$f":"$D$30","v":"US$"},{"$f":"ROUND(IF(CasaMAR!$D$8=CasaMAR!$U$3,Hoja1!H50,Hoja1!H50*CasaMAR!$V$6),0)","v":50},null,null,50]
[{"$f":"+CasaMAR!C44","v":"2.1.4 - Dinero en Tránsito solo por Asalto, maximo"},{"$f":"CONCATENATE(Hoja1!C51,\" \",Hoja1!D51,\" \",Hoja1!E51, ,Hoja1!F51)","v":"  "}]
[{"$f":"+CasaMAR!#REF!","v":{"$error":"#REF!"}},{"$f":"CONCATENATE(Hoja1!C52,\" \",Hoja1!D52,\" \",Hoja1!E52, ,Hoja1!F52)","v":"  "}]
[{"$f":"+CasaMAR!C45","v":"Daños internos de equipos electrónicos y equipos eléctricos, hasta el 10% de la suma asegurada del contenido, máximo:"},{"$f":"CONCATENATE(Hoja1!C53,\" \",Hoja1!D53,\" \",Hoja1!E53, ,Hoja1!F53)","v":"10% del monto indemnizable, mínimo US$ 50"},"10% del monto indemnizable, mínimo",{"$f":"$D$30","v":"US$"},{"$f":"ROUND(IF(CasaMAR!$D$8=CasaMAR!$U$3,Hoja1!H53,Hoja1!H53*CasaMAR!$V$6),0)","v":50},null,null,50]
[{"$f":"+CasaMAR!C47","v":"Asistencia médica urgente por lesiones en un robo con un límite por persona de US$1,000 y en la vigencia hasta:"},{"$f":"CONCATENATE(Hoja1!C54,\" \",Hoja1!D54,\" \",Hoja1!E54, ,Hoja1!F54)","v":"Sin deducible  "},"Sin deducible"]
[{"$f":"+CasaMAR!#REF!","v":{"$error":"#REF!"}},{"$f":"CONCATENATE(Hoja1!C55,\" \",Hoja1!D55,\" \",Hoja1!E55, ,Hoja1!F55)","v":"  "}]
[{"$f":"+CasaMAR!C48","v":"Alojamiento temporal por inhabilitación de la vivienda, con un límite mensual de  US$ 1,000 y en la vigencia hasta: "},{"$f":"CONCATENATE(Hoja1!C56,\" \",Hoja1!D56,\" \",Hoja1!E56, ,Hoja1!F56)","v":"Sin deducible  "},"Sin deducible"]
[{"$f":"+CasaMAR!C49","v":"Daños durante el traslado del contenido asegurado al alojamiento temporal, hasta el 50% de la suma asegurada del contenido, máximo:"},{"$f":"CONCATENATE(Hoja1!C57,\" \",Hoja1!D57,\" \",Hoja1!E57, ,Hoja1!F57)","v":"10% del monto indemnizable, mínimo US$ 50"},"10% del monto indemnizable, mínimo",{"$f":"$D$30","v":"US$"},{"$f":"ROUND(IF(CasaMAR!$D$8=CasaMAR!$U$3,Hoja1!H57,Hoja1!H57*CasaMAR!$V$6),0)","v":50},null,null,50]
[{"$f":"+CasaMAR!C50","v":"Perdida de alimentos en equipos de refrigeración, hasta el 5% de la suma asegurada del contenido, máximo:"},{"$f":"CONCATENATE(Hoja1!C58,\" \",Hoja1!D58,\" \",Hoja1!E58, ,Hoja1!F58)","v":"10% del monto indemnizable, mínimo US$ 50"},"10% del monto indemnizable, mínimo",{"$f":"$D$30","v":"US$"},{"$f":"ROUND(IF(CasaMAR!$D$8=CasaMAR!$U$3,Hoja1!H58,Hoja1!H58*CasaMAR!$V$6),0)","v":50},null,null,50]
[{"$f":"+CasaMAR!C51","v":"2.2.6 Pérdida de equipaje y/o de los bienes portados por el Asegurado y/o cónyuge y/o hijos en caso de viaje dentro o fuera del país, hasta el 10% de la Suma Asegurada del Contenido, máximo:"},{"$f":"CONCATENATE(Hoja1!C59,\" \",Hoja1!D59,\" \",Hoja1!E59, ,Hoja1!F59)","v":"  "}]
[{"$f":"+CasaMAR!C52","v":"Deshonestidad o apropiación ilícita de trabajadores del hogar, limite en agregado vigencia hasta:"},{"$f":"CONCATENATE(Hoja1!C60,\" \",Hoja1!D60,\" \",Hoja1!E60, ,Hoja1!F60)","v":"10% del monto indemnizable, mínimo US$ 200"},"10% del monto indemnizable, mínimo",{"$f":"$D$30","v":"US$"},{"$f":"ROUND(IF(CasaMAR!$D$8=CasaMAR!$U$3,Hoja1!H60,Hoja1!H60*CasaMAR!$V$6),0)","v":200},null,null,200]
[{"$f":"+CasaMAR!#REF!","v":{"$error":"#REF!"}},{"$f":"CONCATENATE(Hoja1!C61,\" \",Hoja1!D61,\" \",Hoja1!E61, ,Hoja1!F61)","v":"  "}]
[{"$f":"+CasaMAR!C53","v":"Compensación por muerte accidental del Asegurado o de su cónyuge o conviviente "},{"$f":"CONCATENATE(Hoja1!C62,\" \",Hoja1!D62,\" \",Hoja1!E62, ,Hoja1!F62)","v":"Sin deducible  "},"Sin deducible"]
[{"$f":"+CasaMAR!C54","v":"Gastos de curación de empleados (trabajadores del hogar), hasta US$ 1,000 por evento, maximo:"},{"$f":"CONCATENATE(Hoja1!C63,\" \",Hoja1!D63,\" \",Hoja1!E63, ,Hoja1!F63)","v":"Sin deducible  "},"Sin deducible"]
[{"$f":"+CasaMAR!C55","v":"2.3.3 Gastos de Sepelio del Asegurado y/o conyuge y/o hijos"},{"$f":"CONCATENATE(Hoja1!C64,\" \",Hoja1!D64,\" \",Hoja1!E64, ,Hoja1!F64)","v":"  "}]
[{"$f":"+CasaMAR!C56","v":"2.3.4 Gastos de Sepelio por muerte del trabajador del hogar"},{"$f":"CONCATENATE(Hoja1!C65,\" \",Hoja1!D65,\" \",Hoja1!E65, ,Hoja1!F65)","v":"  "}]